Workbook

Sheet 第５表 県計
A1: 第5表 地域振興局別・人工林天然林別・資源構成表
A3: 県計(天然林) | O3: 単位 面積 : ha、蓄積 成長量 : ㎥
B4: 樹種 | C4: 針 葉 樹 | J4: 広 葉 樹 | O4: 計
C5: ス ギ | D5: ヒ ノ キ | E5: サ ワ ラ | F5: ア カ マ ツ | G5: カ ラ マ ツ | H5: そ の 他 針 | I5: 小 計 | J5: ク ヌ ギ | K5: ブ ナ | L5: ナ ラ | M5: そ の 他 広 | N5: 小 計
A6: 齢級
A7: 1 | B7: 面積 | C7: 0 | D7: 0 | E7: 0 | F7: 0.72 | G7: 0.04 | H7: 0 | I7: 0.76 | J7: 0.02 | K7: 0 | L7: 3.86 | M7: 198.93 | N7: 202.81 | O7: 203.57
B8: 蓄積 | C8: 0 | D8: 0 | E8: 0 | F8: 0 | G8: 0 | H8: 0 | I8: 0 | J8: 0 | K8: 0 | L8: 0 | M8: 0 | N8: 0 | O8: 0
B9: 成長 | C9: 0 | D9: 0 | E9: 0 | F9: 0 | G9: 0 | H9: 0 | I9: 0 | J9: 0 | K9: 0 | L9: 0 | M9: 0 | N9: 0 | O9: 0
A10: 2 | B10: 面積 | C10: 0.4 | D10: 1.28 | E10: 0 | F10: 1.27 | G10: 10.54 | H10: 0 | I10: 13.49 | J10: 0.71 | K10: 0 | L10: 5.73 | M10: 574.42 | N10: 580.86 | O10: 594.35
B11: 蓄積 | C11: 0 | D11: 0 | E11: 0 | F11: 0 | G11: 0 | H11: 0 | I11: 0 | J11: 9 | K11: 0 | L11: 81 | M11: 7152 | N11: 7242 | O11: 7242
B12: 成長 | C12: 0 | D12: 0 | E12: 0 | F12: 0 | G12: 0 | H12: 0 | I12: 0 | J12: 2.9 | K12: 0 | L12: 11.6 | M12: 1008.5 | N12: 1023 | O12: 1023
A13: 3 | B13: 面積 | C13: 0.08 | D13: 3.24 | E13: 0 | F13: 2.41 | G13: 9.51 | H13: 0.24 | I13: 15.48 | J13: 0 | K13: 0 | L13: 12.03 | M13: 437.19 | N13: 449.22 | O13: 464.7
B14: 蓄積 | C14: 7 | D14: 101 | E14: 0 | F14: 140 | G14: 776 | H14: 6 | I14: 1030 | J14: 0 | K14: 0 | L14: 278 | M14: 10024 | N14: 10302 | O14: 11332
B15: 成長 | C15: 1.4 | D15: 20 | E15: 0 | F15: 18.7 | G15: 69.3 | H15: 0.8 | I15: 110.2 | J15: 0 | K15: 0 | L15: 23.6 | M15: 874.4 | N15: 898 | O15: 1008.2
A16: 4 | B16: 面積 | C16: 0 | D16: 3.08 | E16: 0 | F16: 6.95 | G16: 0.35 | H16: 0 | I16: 10.38 | J16: 4.36 | K16: 0 | L16: 13.46 | M16: 360.42 | N16: 378.24 | O16: 388.62
B17: 蓄積 | C17: 0 | D17: 233 | E17: 0 | F17: 584 | G17: 47 | H17: 106 | I17: 970 | J17: 237 | K17: 0 | L17: 429 | M17: 11157 | N17: 11823 | O17: 12793
B18: 成長 | C18: 0 | D18: 21.7 | E18: 0 | F18: 48.2 | G18: 2.9 | H18: 8.8 | I18: 81.6 | J18: 11.4 | K18: 0 | L18: 28.6 | M18: 752.9 | N18: 792.9 | O18: 874.5
A19: 5 | B19: 面積 | C19: 0.25 | D19: 9.74 | E19: 0 | F19: 27.18 | G19: 1.13 | H19: 10.29 | I19: 48.59 | J19: 6.97 | K19: 3.84 | L19: 53.07 | M19: 874.6 | N19: 938.48 | O19: 987.07
B20: 蓄積 | C20: 48 | D20: 891 | E20: 0 | F20: 2558 | G20: 195 | H20: 433 | I20: 4125 | J20: 379 | K20: 78 | L20: 2228 | M20: 32663 | N20: 35348 | O20: 39473
B21: 成長 | C21: 3.3 | D21: 53.4 | E21: 0 | F21: 136.9 | G21: 9.1 | H21: 30.1 | I21: 232.8 | J21: 14.4 | K21: 6.1 | L21: 114.2 | M21: 1710.5 | N21: 1845.2 | O21: 2078
A22: 6 | B22: 面積 | C22: 1.61 | D22: 2.73 | E22: 0 | F22: 32.5 | G22: 2.66 | H22: 10.4 | I22: 49.9 | J22: 18.55 | K22: 3.9 | L22: 157.48 | M22: 2367.7 | N22: 2547.63 | O22: 2597.53
B23: 蓄積 | C23: 227 | D23: 341 | E23: 0 | F23: 4374 | G23: 410 | H23: 628 | I23: 5980 | J23: 1279 | K23: 105 | L23: 8002 | M23: 111566 | N23: 120952 | O23: 126932
B24: 成長 | C24: 11.8 | D24: 14.6 | E24: 0 | F24: 165 | G24: 14.1 | H24: 31.7 | I24: 237.2 | J24: 30.6 | K24: 6.9 | L24: 323.9 | M24: 4474.3 | N24: 4835.7 | O24: 5072.9
A25: 7 | B25: 面積 | C25: 2.73 | D25: 1.08 | E25: 0.21 | F25: 98.77 | G25: 4.28 | H25: 8.64 | I25: 115.71 | J25: 54.28 | K25: 17.09 | L25: 323.98 | M25: 4121.19 | N25: 4516.54 | O25: 4632.25
B26: 蓄積 | C26: 714 | D26: 125 | E26: 35 | F26: 13397 | G26: 577 | H26: 685 | I26: 15533 | J26: 4135 | K26: 560 | L26: 19799 | M26: 232798 | N26: 257292 | O26: 272825
B27: 成長 | C27: 24.2 | D27: 4.3 | E27: 1.2 | F27: 341.9 | G27: 13 | H27: 31.3 | I27: 415.9 | J27: 66.1 | K27: 31.9 | L27: 621.3 | M27: 7276 | N27: 7995.3 | O27: 8411.2
A28: 8 | B28: 面積 | C28: 0.12 | D28: 6.13 | E28: 0 | F28: 67.93 | G28: 0.51 | H28: 5.22 | I28: 79.91 | J28: 68.31 | K28: 10.84 | L28: 576.81 | M28: 4333.92 | N28: 4989.88 | O28: 5069.79
B29: 蓄積 | C29: 39 | D29: 1086 | E29: 0 | F29: 11519 | G29: 127 | H29: 474 | I29: 13245 | J29: 5307 | K29: 570 | L29: 40426 | M29: 285625 | N29: 331928 | O29: 345173
B30: 成長 | C30: 0.9 | D30: 28.7 | E30: 0 | F30: 236.7 | G30: 2.6 | H30: 17.8 | I30: 286.7 | J30: 51.9 | K30: 24.3 | L30: 1211.8 | M30: 8550 | N30: 9838 | O30: 10124.7
A31: 9 | B31: 面積 | C31: 1.95 | D31: 4.5 | E31: 0.99 | F31: 128.75 | G31: 9.71 | H31: 30.41 | I31: 176.31 | J31: 85.62 | K31: 28.75 | L31: 486.25 | M31: 4599.1 | N31: 5199.72 | O31: 5376.03
B32: 蓄積 | C32: 542 | D32: 844 | E32: 209 | F32: 23966 | G32: 2145 | H32: 3109 | I32: 30815 | J32: 7105 | K32: 1697 | L32: 38733 | M32: 347178 | N32: 394713 | O32: 425528
B33: 成長 | C33: 10.5 | D33: 20.6 | E33: 4.5 | F33: 365.4 | G33: 43.9 | H33: 103.7 | I33: 548.6 | J33: 49.1 | K33: 60 | L33: 1065.4 | M33: 9493.2 | N33: 10667.7 | O33: 11216.3
A34: 10 | B34: 面積 | C34: 2.02 | D34: 16.01 | E34: 0.52 | F34: 258.4 | G34: 5.24 | H34: 54.34 | I34: 336.53 | J34: 83.98 | K34: 79.98 | L34: 432.35 | M34: 6163.5 | N34: 6759.81 | O34: 7096.34
B35: 蓄積 | C35: 797 | D35: 3448 | E35: 120 | F35: 51171 | G35: 1067 | H35: 6916 | I35: 63519 | J35: 7210 | K35: 4638 | L35: 38537 | M35: 513007 | N35: 563392 | O35: 626911
B36: 成長 | C36: 13.7 | D36: 63.1 | E36: 2.2 | F36: 669.9 | G36: 16.6 | H36: 196.3 | I36: 961.8 | J36: 20.5 | K36: 141.2 | L36: 961 | M36: 12817.9 | N36: 13940.6 | O36: 14902.4
A37: 11 | B37: 面積 | C37: 3.02 | D37: 4.46 | E37: 1.1 | F37: 1035.23 | G37: 18.43 | H37: 160.94 | I37: 1223.18 | J37: 54.48 | K37: 237.24 | L37: 606.36 | M37: 10448.24 | N37: 11346.32 | O37: 12569.5
B38: 蓄積 | C38: 1241 | D38: 1096 | E38: 269 | F38: 223253 | G38: 4088 | H38: 23619 | I38: 253566 | J38: 4850 | K38: 16040 | L38: 59873 | M38: 919403 | N38: 1000166 | O38: 1253732
B39: 成長 | C39: 15.9 | D39: 17.6 | E39: 4.2 | F39: 2475.4 | G39: 55.1 | H39: 541.2 | I39: 3109.4 | J39: 14.5 | K39: 415.4 | L39: 1178.4 | M39: 17737.4 | N39: 19345.7 | O39: 22455.1
A40: 12 | B40: 面積 | C40: 6.51 | D40: 2.61 | E40: 2.06 | F40: 2523.45 | G40: 15.31 | H40: 246.12 | I40: 2796.06 | J40: 107.51 | K40: 220.87 | L40: 971.27 | M40: 15496.27 | N40: 16795.92 | O40: 19591.98
B41: 蓄積 | C41: 2982 | D41: 678 | E41: 547 | F41: 568907 | G41: 4242 | H41: 32727 | I41: 610083 | J41: 9409 | K41: 18811 | L41: 99765 | M41: 1499836 | N41: 1627821 | O41: 2237904
B42: 成長 | C42: 33.6 | D42: 9.4 | E42: 7.6 | F42: 5455 | G42: 52.7 | H42: 639.1 | I42: 6197.4 | J42: 15 | K42: 433.5 | L42: 1880.4 | M42: 28172.3 | N42: 30501.2 | O42: 36698.6
A43: 13 | B43: 面積 | C43: 4.19 | D43: 2.96 | E43: 3.96 | F43: 4327.67 | G43: 433.43 | H43: 585.23 | I43: 5357.44 | J43: 374.47 | K43: 472.28 | L43: 2155.18 | M43: 27774.67 | N43: 30776.6 | O43: 36134.04
B44: 蓄積 | C44: 1421 | D44: 795 | E44: 1039 | F44: 999191 | G44: 93225 | H44: 80191 | I44: 1175862 | J44: 33493 | K44: 39405 | L44: 237546 | M44: 2946888 | N44: 3257332 | O44: 4433194
B45: 成長 | C45: 16.5 | D45: 10.7 | E45: 14.7 | F45: 9290 | G45: 1187.9 | H45: 1514.7 | I45: 12034.5 | J45: 114.8 | K45: 882.7 | L45: 3621.5 | M45: 46403.1 | N45: 51022.1 | O45: 63056.6
A46: 14 | B46: 面積 | C46: 12.05 | D46: 6.76 | E46: 24.05 | F46: 6599.35 | G46: 23.89 | H46: 356.1 | I46: 7022.2 | J46: 802.39 | K46: 248.3 | L46: 3539.27 | M46: 41326.97 | N46: 45916.93 | O46: 52939.13
B47: 蓄積 | C47: 2763 | D47: 1745 | E47: 6427 | F47: 1569211 | G47: 6784 | H47: 56050 | I47: 1642980 | J47: 73039 | K47: 25219 | L47: 415094 | M47: 4656899 | N47: 5170251 | O47: 6813231
B48: 成長 | C48: 26.8 | D48: 21.3 | E48: 79 | F48: 12303.7 | G48: 63.5 | H48: 947.2 | I48: 13441.5 | J48: 176.8 | K48: 481.2 | L48: 4651.6 | M48: 53679.7 | N48: 58989.3 | O48: 72430.8
A49: 15 以上 | B49: 面積 | C49: 88.18 | D49: 72.4 | E49: 227.28 | F49: 30874.01 | G49: 437.78 | H49: 10818.02 | I49: 42517.67 | J49: 816.18 | K49: 4726.39 | L49: 8501.84 | M49: 128155.19 | N49: 142199.6 | O49: 184717.27
B50: 蓄積 | C50: 37184 | D50: 21240 | E50: 61604 | F50: 7860448 | G50: 102181 | H50: 2427378 | I50: 10510035 | J50: 75954 | K50: 625245 | L50: 1040903 | M50: 15063435 | N50: 16805537 | O50: 27315572
B51: 成長 | C51: 31.2 | D51: 65.2 | E51: 129.8 | F51: 33814.8 | G51: 90.2 | H51: 10675.6 | I51: 44806.8 | J51: 165.9 | K51: 3128.9 | L51: 6230.8 | M51: 73157.7 | N51: 82683.3 | O51: 127490.1
A52: 計 | B52: 面積 | C52: 123.11 | D52: 136.98 | E52: 260.17 | F52: 45984.59 | G52: 972.81 | H52: 12285.95 | I52: 59763.61 | J52: 2477.83 | K52: 6049.48 | L52: 17838.94 | M52: 247232.31 | N52: 273598.56 | O52: 333362.17
B53: 蓄積 | C53: 47965 | D53: 32623 | E53: 70250 | F53: 11328719 | G53: 215864 | H53: 2632322 | I53: 14327743 | J53: 222406 | K53: 732368 | L53: 2001694 | M53: 26637631 | N53: 29594099 | O53: 43921842
B54: 成長 | C54: 189.8 | D54: 350.6 | E54: 243.2 | F54: 65321.6 | G54: 1620.9 | H54: 14738.3 | I54: 82464.4 | J54: 733.9 | K54: 5612.1 | L54: 21924.1 | M54: 266107.9 | N54: 294378 | O54: 376842.4

Sheet 佐久
A1: 第5表 地域振興局別・人工林天然林別・資源構成表
A3: 佐久地域振興局(天然林) | O3: 単位 面積 : ha、蓄積 成長量 : ㎥
B4: 樹種 | C4: 針 葉 樹 | J4: 広 葉 樹 | O4: 計
C5: ス ギ | D5: ヒ ノ キ | E5: サ ワ ラ | F5: ア カ マ ツ | G5: カ ラ マ ツ | H5: そ の 他 針 | I5: 小 計 | J5: ク ヌ ギ | K5: ブ ナ | L5: ナ ラ | M5: そ の 他 広 | N5: 小 計
A6: 齢級
A7: 1 | B7: 面積 | I7: 0 | M7: 98.88 | N7: 98.88 | O7: =SUM(N7,I7) -> 98.88
B8: 蓄積 | I8: 0 | M8: 0 | N8: 0 | O8: 0
B9: 成長 | I9: 0 | M9: 0 | N9: 0 | O9: 0
A10: 2 | B10: 面積 | F10: 1.08 | G10: 0.39 | I10: 1.47 | L10: 1.38 | M10: 167.81 | N10: 169.19 | O10: 170.66
B11: 蓄積 | F11: 0 | G11: 0 | I11: 0 | L11: 18 | M11: 2145 | N11: 2163 | O11: 2163
B12: 成長 | F12: 0 | G12: 0 | I12: 0 | L12: 2.7 | M12: 308.9 | N12: 311.6 | O12: 311.6
A13: 3 | B13: 面積 | G13: 8.31 | I13: 8.31 | L13: 2.94 | M13: 98.48 | N13: 101.42 | O13: 109.73
B14: 蓄積 | G14: 687 | I14: 687 | L14: 76 | M14: 2459 | N14: 2535 | O14: 3222
B15: 成長 | G15: 61.1 | I15: 61.1 | L15: 6.4 | M15: 211.2 | N15: 217.6 | O15: 278.7
A16: 4 | B16: 面積 | F16: 0.6 | G16: 0.29 | I16: 0.89 | L16: 4.13 | M16: 56.66 | N16: 60.79 | O16: 61.68
B17: 蓄積 | F17: 59 | G17: 41 | H17: 106 | I17: 206 | L17: 134 | M17: 1868 | N17: 2002 | O17: 2208
B18: 成長 | F18: 4.9 | G18: 2.5 | H18: 8.8 | I18: 16.2 | L18: 9.2 | M18: 125.9 | N18: 135.1 | O18: 151.3
A19: 5 | B19: 面積 | D19: 1.05 | F19: 4.38 | G19: 1 | I19: 6.43 | J19: 0.66 | L19: 10.65 | M19: 120.13 | N19: 131.44 | O19: 137.87
B20: 蓄積 | D20: 71 | F20: 517 | G20: 179 | H20: 21 | I20: 788 | J20: 27 | L20: 478 | M20: 4727 | N20: 5232 | O20: 6020
B21: 成長 | D21: 5.1 | F21: 26.1 | G21: 8.2 | H21: 1.3 | I21: 40.7 | J21: 1.5 | L21: 24.6 | M21: 250.2 | N21: 276.3 | O21: 317
A22: 6 | B22: 面積 | F22: 7.25 | I22: 7.25 | J22: 1.22 | L22: 31.28 | M22: 420.74 | N22: 453.24 | O22: 460.49
B23: 蓄積 | F23: 1059 | I23: 1059 | J23: 63 | L23: 1585 | M23: 21084 | N23: 22732 | O23: 23791
B24: 成長 | F24: 39 | I24: 39 | J24: 2.6 | L24: 64.8 | M24: 858.2 | N24: 925.6 | O24: 964.6
A25: 7 | B25: 面積 | F25: 3.76 | G25: 2.5 | H25: 0.18 | I25: 6.44 | J25: 1.57 | L25: 35.64 | M25: 437.51 | N25: 474.72 | O25: 481.16
B26: 蓄積 | F26: 572 | G26: 458 | H26: 10 | I26: 1040 | J26: 93 | L26: 2177 | M26: 25665 | N26: 27935 | O26: 28975
B27: 成長 | F27: 14.9 | G27: 10.1 | H27: 0.4 | I27: 25.4 | J27: 3.1 | L27: 68 | M27: 797.7 | N27: 868.8 | O27: 894.2
A28: 8 | B28: 面積 | F28: 7.88 | G28: 0.36 | H28: 0.15 | I28: 8.39 | J28: 0.25 | L28: 77.49 | M28: 376.81 | N28: 454.55 | O28: 462.94
B29: 蓄積 | F29: 1384 | G29: 96 | H29: 26 | I29: 1506 | J29: 19 | L29: 5486 | M29: 26221 | N29: 31726 | O29: 33232
B30: 成長 | F30: 27.9 | G30: 1.9 | H30: 1 | I30: 30.8 | J30: 0.6 | L30: 165.4 | M30: 790.8 | N30: 956.8 | O30: 987.6
A31: 9 | B31: 面積 | F31: 9 | G31: 0.3 | H31: 3.46 | I31: 12.76 | J31: 0.37 | L31: 50.75 | M31: 487.62 | N31: 538.74 | O31: 551.5
B32: 蓄積 | F32: 1573 | G32: 103 | H32: 580 | I32: 2256 | J32: 31 | L32: 4004 | M32: 38549 | N32: 42584 | O32: 44840
B33: 成長 | F33: 23.6 | G33: 1.8 | H33: 20.5 | I33: 45.9 | J33: 0.8 | L33: 111.3 | M33: 1074.1 | N33: 1186.2 | O33: 1232.1
A34: 10 | B34: 面積 | F34: 18.18 | G34: 0.09 | H34: 8.83 | I34: 27.1 | J34: 1.31 | L34: 63.95 | M34: 474.44 | N34: 539.7 | O34: 566.8
B35: 蓄積 | F35: 3697 | G35: 27 | H35: 1546 | I35: 5270 | J35: 121 | L35: 5819 | M35: 42549 | N35: 48489 | O35: 53759
B36: 成長 | F36: 48.2 | G36: 0.4 | H36: 44.9 | I36: 93.5 | J36: 3.1 | L36: 147.9 | M36: 1077.4 | N36: 1228.4 | O36: 1321.9
A37: 11 | B37: 面積 | C37: 0.55 | D37: 0.08 | F37: 49.56 | G37: 1.4 | H37: 41.06 | I37: 92.65 | J37: 1.39 | L37: 112.88 | M37: 697.09 | N37: 811.36 | O37: 904.01
B38: 蓄積 | C38: 226 | D38: 26 | F38: 10769 | G38: 464 | H38: 8805 | I38: 20290 | J38: 136 | L38: 11188 | M38: 66327 | N38: 77651 | O38: 97941
B39: 成長 | C39: 2.9 | D39: 0.6 | F39: 119.5 | G39: 5.6 | H39: 206.2 | I39: 334.8 | J39: 2.6 | L39: 221.3 | M39: 1297.7 | N39: 1521.6 | O39: 1856.4
A40: 12 | B40: 面積 | F40: 149.77 | G40: 0.59 | H40: 17.16 | I40: 167.52 | J40: 1.94 | L40: 177.35 | M40: 1197.6 | N40: 1376.89 | O40: 1544.41
B41: 蓄積 | F41: 33963 | G41: 204 | H41: 4167 | I41: 38334 | J41: 179 | L41: 18355 | M41: 120181 | N41: 138715 | O41: 177049
B42: 成長 | F42: 311.6 | G42: 1.8 | H42: 84.9 | I42: 398.3 | J42: 3.2 | L42: 346.4 | M42: 2236.9 | N42: 2586.5 | O42: 2984.8
A43: 13 | B43: 面積 | C43: 0.03 | F43: 315.43 | G43: 3.51 | H43: 25.89 | I43: 344.86 | J43: 6.94 | L43: 436.98 | M43: 3080.39 | N43: 3524.31 | O43: 3869.17
B44: 蓄積 | C44: 14 | F44: 72812 | G44: 1217 | H44: 6984 | I44: 81027 | J44: 744 | L44: 47757 | M44: 335450 | N44: 383951 | O44: 464978
B45: 成長 | C45: 0.2 | F45: 628.1 | G45: 10.9 | H45: 133.5 | I45: 772.7 | J45: 11.2 | L45: 695.5 | M45: 4790.4 | N45: 5497.1 | O45: 6269.8
A46: 14 | B46: 面積 | E46: 0.2 | F46: 396.62 | G46: 1.25 | H46: 23.98 | I46: 422.05 | J46: 7.73 | L46: 610.62 | M46: 4376.54 | N46: 4994.89 | O46: 5416.94
B47: 蓄積 | E47: 84 | F47: 95359 | G47: 474 | H47: 6557 | I47: 102474 | J47: 891 | L47: 71764 | M47: 496401 | N47: 569056 | O47: 671530
B48: 成長 | E48: 1.5 | F48: 665.9 | G48: 3.7 | H48: 114.5 | I48: 785.6 | J48: 8.7 | L48: 759.2 | M48: 5261.2 | N48: 6029.1 | O48: 6814.7
A49: 15 以上 | B49: 面積 | E49: 0.05 | F49: 1785.7 | G49: 157.48 | H49: 1153.2 | I49: 3096.43 | J49: 10.24 | L49: 864.17 | M49: 8612.8 | N49: 9487.21 | O49: 12583.64
B50: 蓄積 | E50: 24 | F50: 449069 | G50: 44685 | H50: 434765 | I50: 928543 | J50: 1282 | L50: 106067 | M50: 1022505 | N50: 1129854 | O50: 2058397
B51: 成長 | E51: 0 | F51: 1457.9 | G51: 17.9 | H51: 2262.9 | I51: 3738.7 | J51: 8.6 | L51: 562.5 | M51: 4313.3 | N51: 4884.4 | O51: 8623.1
A52: 計 | B52: 面積 | C52: =SUM(C7,C10,C13,C16,C19,C22,C25,C28,C31,C34,C37,C40,C43,C46,C49) -> 0.58 | D52: 1.13 | E52: 0.25 | F52: 2749.21 | G52: 177.47 | H52: 1273.91 | I52: 4202.55 | J52: =SUM(J7,J10,J13,J16,J19,J22,J25,J28,J31,J34,J37,J40,J43,J46,J49) -> 33.62 | K52: 0 | L52: 2480.21 | M52: 20703.5 | N52: =SUM(J52:M52) -> 23217.33 | O52: =SUM(N52,I52) -> 27419.88
B53: 蓄積 | C53: 240 | D53: 97 | E53: 108 | F53: 670833 | G53: 48635 | H53: 463567 | I53: 1183480 | J53: 3586 | K53: 0 | L53: 274908 | M53: 2206131 | N53: =SUM(J53:M53) -> 2484625 | O53: 3668105
B54: 成長 | C54: 3.1 | D54: 5.7 | E54: 1.5 | F54: 3367.6 | G54: 125.9 | H54: 2878.9 | I54: 6382.7 | J54: 46 | K54: 0 | L54: 3185.2 | M54: 23393.9 | N54: =SUM(J54:M54) -> 26625.1 | O54: 33007.8

Sheet 上田
A1: 第5表 地域振興局別・人工林天然林別・資源構成表
A3: 上田地域振興局(天然林) | O3: 単位 面積 : ha、蓄積 成長量 : ㎥
B4: 樹種 | C4: 針 葉 樹 | J4: 広 葉 樹 | O4: 計
C5: ス ギ | D5: ヒ ノ キ | E5: サ ワ ラ | F5: ア カ マ ツ | G5: カ ラ マ ツ | H5: そ の 他 針 | I5: 小 計 | J5: ク ヌ ギ | K5: ブ ナ | L5: ナ ラ | M5: そ の 他 広 | N5: 小 計
A6: 齢級
A7: 1 | B7: 面積 | I7: 0 | M7: 12.88 | N7: 12.88 | O7: =SUM(N7,I7) -> 12.88
B8: 蓄積 | I8: 0 | M8: 0 | N8: 0 | O8: 0
B9: 成長 | I9: 0 | M9: 0 | N9: 0 | O9: 0
A10: 2 | B10: 面積 | D10: 0.05 | G10: 0.4 | I10: 0.45 | L10: 2.03 | M10: 176.24 | N10: 178.27 | O10: 178.72
B11: 蓄積 | D11: 0 | G11: 0 | I11: 0 | L11: 34 | M11: 2292 | N11: 2326 | O11: 2326
B12: 成長 | D12: 0 | G12: 0 | I12: 0 | L12: 4.9 | M12: 331.5 | N12: 336.4 | O12: 336.4
A13: 3 | B13: 面積 | F13: 0.09 | I13: 0.09 | L13: 2.53 | M13: 27.67 | N13: 30.2 | O13: =SUM(N13,I13) -> 30.29
B14: 蓄積 | F14: 1 | I14: 1 | L14: 48 | M14: 636 | N14: 684 | O14: 685
B15: 成長 | F15: 0.1 | I15: 0.1 | L15: 4 | M15: 54.5 | N15: 58.5 | O15: 58.6
A16: 4 | B16: 面積 | F16: 0.32 | I16: 0.32 | J16: 0.61 | L16: 0.32 | M16: 33.69 | N16: 34.62 | O16: 34.94
B17: 蓄積 | F17: 34 | I17: 34 | J17: 19 | L17: 11 | M17: 1099 | N17: 1129 | O17: 1163
B18: 成長 | F18: 2.9 | I18: 2.9 | J18: 1.2 | L18: 0.7 | M18: 74.5 | N18: 76.4 | O18: 79.3
A19: 5 | B19: 面積 | D19: 0.41 | F19: 0.84 | I19: 1.25 | J19: 1.91 | L19: 9.57 | M19: 78.55 | N19: 90.03 | O19: 91.28
B20: 蓄積 | D20: 38 | F20: 106 | I20: 144 | J20: 81 | L20: 407 | M20: 3087 | N20: 3575 | O20: 3719
B21: 成長 | D21: 2.7 | F21: 5.4 | I21: 8.1 | J21: 4.3 | L21: 21.1 | M21: 161.4 | N21: 186.8 | O21: 194.9
A22: 6 | B22: 面積 | C22: 0.11 | F22: 5.81 | I22: 5.92 | J22: 0.36 | L22: 32.51 | M22: 181.01 | N22: 213.88 | O22: 219.8
B23: 蓄積 | C23: 26 | F23: 819 | I23: 845 | J23: 15 | L23: 1715 | M23: 8747 | N23: 10477 | O23: 11322
B24: 成長 | C24: 0.9 | F24: 30.2 | I24: 31.1 | J24: 0.6 | L24: 70 | M24: 357.5 | N24: 428.1 | O24: 459.2
A25: 7 | B25: 面積 | F25: 8.42 | H25: 1.05 | I25: 9.47 | J25: 3.46 | L25: 53.1 | M25: 434.69 | N25: 491.25 | O25: 500.72
B26: 蓄積 | F26: 1325 | H26: 145 | I26: 1470 | J26: 204 | L26: 3303 | M26: 26465 | N26: 29972 | O26: 31442
B27: 成長 | F27: 32.3 | H27: 6.2 | I27: 38.5 | J27: 6.3 | L27: 102.5 | M27: 820.8 | N27: 929.6 | O27: 968.1
A28: 8 | B28: 面積 | C28: 0.12 | D28: 0.11 | F28: 6.14 | H28: 0.84 | I28: 7.21 | J28: 3.28 | L28: 87.07 | M28: 379.82 | N28: 470.17 | O28: 477.38
B29: 蓄積 | C29: 39 | D29: 21 | F29: 1021 | H29: 131 | I29: 1212 | J29: 229 | L29: 6108 | M29: 26212 | N29: 32549 | O29: 33761
B30: 成長 | C30: 0.9 | D30: 0.8 | F30: 22.2 | H30: 5 | I30: 28.9 | J30: 6.9 | L30: 184.6 | M30: 790.6 | N30: 982.1 | O30: 1011
A31: 9 | B31: 面積 | C31: 0.21 | F31: 18.26 | G31: 0.2 | H31: 0.1 | I31: 18.77 | J31: 8.3 | L31: 66.74 | M31: 461.47 | N31: 536.51 | O31: 555.28
B32: 蓄積 | C32: 78 | F32: 3600 | G32: 58 | H32: 20 | I32: 3756 | J32: 656 | L32: 5278 | M32: 37475 | N32: 43409 | O32: 47165
B33: 成長 | C33: 1.5 | F33: 54.3 | G33: 1 | H33: 0.7 | I33: 57.5 | J33: 18.9 | L33: 148.3 | M33: 1050.1 | N33: 1217.3 | O33: 1274.8
A34: 10 | B34: 面積 | F34: 29.66 | G34: 0.13 | H34: 3.22 | I34: 33.01 | J34: 0.79 | L34: 47.5 | M34: 318.92 | N34: 367.21 | O34: 400.22
B35: 蓄積 | F35: 5857 | G35: 39 | H35: 744 | I35: 6640 | J35: 72 | L35: 4343 | M35: 28532 | N35: 32947 | O35: 39587
B36: 成長 | F36: 76.3 | G36: 0.4 | H36: 22.3 | I36: 99 | J36: 1.8 | L36: 110.5 | M36: 730.3 | N36: 842.6 | O36: 941.6
A37: 11 | B37: 面積 | D37: 0.03 | F37: 83.3 | G37: 2.04 | H37: 3.4 | I37: 88.77 | J37: 5.75 | L37: 48.82 | M37: 406.23 | N37: 460.8 | O37: 549.57
B38: 蓄積 | D38: 13 | F38: 18250 | G38: 671 | H38: 635 | I38: 19569 | J38: 586 | L38: 4795 | M38: 39078 | N38: 44459 | O38: 64028
B39: 成長 | D39: 0.3 | F39: 201.6 | G39: 8 | H39: 14.5 | I39: 224.4 | J39: 11.9 | L39: 95 | M39: 771.1 | N39: 878 | O39: 1102.4
A40: 12 | B40: 面積 | C40: 1.95 | F40: 255.92 | G40: 1.03 | H40: 4.09 | I40: 262.99 | J40: 5.61 | L40: 61.45 | M40: 676.17 | N40: 743.23 | O40: 1006.22
B41: 蓄積 | C41: 875 | F41: 58724 | G41: 350 | H41: 1054 | I41: 61003 | J41: 608 | L41: 6576 | M41: 71299 | N41: 78483 | O41: 139486
B42: 成長 | C42: 9.7 | F42: 531.4 | G42: 3.1 | H42: 21.2 | I42: 565.4 | J42: 11.8 | L42: 125.9 | M42: 1334.5 | N42: 1472.2 | O42: 2037.6
A43: 13 | B43: 面積 | C43: 0.08 | F43: 305.66 | G43: 3.23 | H43: 6.17 | I43: 315.14 | J43: 61.35 | L43: 139.35 | M43: 1566.73 | N43: 1767.43 | O43: 2082.57
B44: 蓄積 | C44: 39 | F44: 71913 | G44: 1130 | H44: 1825 | I44: 74907 | J44: 6585 | L44: 16311 | M44: 181721 | N44: 204617 | O44: 279524
B45: 成長 | C45: 0.5 | F45: 620.9 | G45: 9.3 | H45: 35.7 | I45: 666.4 | J45: 103.5 | L45: 233.8 | M45: 2597.4 | N45: 2934.7 | O45: 3601.1
A46: 14 | B46: 面積 | F46: 420.54 | G46: 0.06 | H46: 4.03 | I46: 424.63 | J46: 129.82 | L46: 256.17 | M46: 2897.56 | N46: 3283.55 | O46: 3708.18
B47: 蓄積 | F47: 104105 | G47: 21 | H47: 1277 | I47: 105403 | J47: 14988 | L47: 31235 | M47: 345028 | N47: 391251 | O47: 496654
B48: 成長 | F48: 713 | G48: 0.1 | H48: 20.7 | I48: 733.8 | J48: 168.1 | L48: 324.9 | M48: 3544.1 | N48: 4037.1 | O48: 4770.9
A49: 15 以上 | B49: 面積 | C49: 0.01 | D49: 0.03 | E49: 1.93 | F49: 2621.34 | G49: 0.88 | H49: 60.01 | I49: 2684.2 | J49: 158.71 | K49: 4 | L49: 421.22 | M49: 4513.85 | N49: 5097.78 | O49: 7781.98
B50: 蓄積 | C50: 5 | D50: 14 | E50: 676 | F50: 683261 | G50: 328 | H50: 24051 | I50: 708335 | J50: 19623 | K50: 758 | L50: 54342 | M50: 563905 | N50: 638628 | O50: 1346963
B51: 成長 | C51: 0 | D51: 0.2 | E51: 0.2 | F51: 2029.9 | G51: 0.2 | H51: 226.9 | I51: 2257.4 | J51: 157.1 | K51: 0.4 | L51: 331.5 | M51: 3131.4 | N51: 3620.4 | O51: 5877.8
A52: 計 | B52: 面積 | C52: =SUM(C7,C10,C13,C16,C19,C22,C25,C28,C31,C34,C37,C40,C43,C46,C49) -> 2.48 | D52: 0.63 | E52: 1.93 | F52: 3756.3 | G52: 7.97 | H52: 82.91 | I52: 3852.22 | J52: =SUM(J7,J10,J13,J16,J19,J22,J25,J28,J31,J34,J37,J40,J43,J46,J49) -> 379.95 | K52: 4 | L52: 1228.38 | M52: 12165.48 | N52: =SUM(J52:M52) -> 13777.81 | O52: 17630.03
B53: 蓄積 | C53: 1062 | D53: 86 | E53: 676 | F53: 949016 | G53: 2597 | H53: 29882 | I53: 983319 | J53: 43666 | K53: 758 | L53: 134506 | M53: 1335576 | N53: =SUM(J53:M53) -> 1514506 | O53: 2497825
B54: 成長 | C54: 13.5 | D54: 4 | E54: 0.2 | F54: 4320.5 | G54: 22.1 | H54: 353.2 | I54: 4713.5 | J54: 492.4 | K54: 0.4 | L54: 1757.7 | M54: 15749.7 | N54: =SUM(J54:M54) -> 18000.2 | O54: 22713.7

Sheet 諏訪
A1: 第5表 地域振興局別・人工林天然林別・資源構成表
A3: 諏訪地域振興局(天然林) | O3: 単位 面積 : ha、蓄積 成長量 : ㎥
B4: 樹種 | C4: 針 葉 樹 | J4: 広 葉 樹 | O4: 計
C5: ス ギ | D5: ヒ ノ キ | E5: サ ワ ラ | F5: ア カ マ ツ | G5: カ ラ マ ツ | H5: そ の 他 針 | I5: 小 計 | J5: ク ヌ ギ | K5: ブ ナ | L5: ナ ラ | M5: そ の 他 広 | N5: 小 計
A6: 齢級
A7: 1 | B7: 面積 | F7: 0.68 | I7: 0.68 | M7: 0.08 | N7: 0.08 | O7: =SUM(N7,I7) -> 0.76
B8: 蓄積 | F8: 0 | I8: 0 | M8: 0 | N8: 0 | O8: 0
B9: 成長 | F9: 0 | I9: 0 | M9: 0 | N9: 0 | O9: 0
A10: 2 | B10: 面積 | I10: 0 | M10: 0.49 | N10: 0.49 | O10: 0.49
B11: 蓄積 | I11: 0 | M11: 7 | N11: 7 | O11: 7
B12: 成長 | I12: 0 | M12: 0.9 | N12: 0.9 | O12: 0.9
A13: 3 | B13: 面積 | G13: 0.72 | I13: 0.72 | M13: 20.42 | N13: 20.42 | O13: 21.14
B14: 蓄積 | G14: 55 | I14: 55 | M14: 391 | N14: 391 | O14: 446
B15: 成長 | G15: 5.1 | I15: 5.1 | M15: 35.3 | N15: 35.3 | O15: 40.4
A16: 4 | B16: 面積 | I16: 0 | L16: 0.38 | M16: 3.79 | N16: 4.17 | O16: 4.17
B17: 蓄積 | I17: 0 | L17: 11 | M17: 114 | N17: 125 | O17: 125
B18: 成長 | I18: 0 | L18: 0.7 | M18: 7.7 | N18: 8.4 | O18: 8.4
A19: 5 | B19: 面積 | D19: 0.11 | F19: 0.06 | I19: 0.17 | L19: 0.53 | M19: 31.57 | N19: 32.1 | O19: 32.27
B20: 蓄積 | D20: 13 | F20: 7 | I20: 20 | L20: 22 | M20: 1223 | N20: 1245 | O20: 1265
B21: 成長 | D21: 0.8 | F21: 0.4 | I21: 1.2 | L21: 1 | M21: 64.7 | N21: 65.7 | O21: 66.9
A22: 6 | B22: 面積 | D22: 0.24 | F22: 0.16 | H22: 9.35 | I22: 9.75 | L22: 1.16 | M22: 77.32 | N22: 78.48 | O22: 88.23
B23: 蓄積 | D23: 31 | F23: 22 | H23: 565 | I23: 618 | L23: 62 | M23: 3764 | N23: 3826 | O23: 4444
B24: 成長 | D24: 1.3 | F24: 0.8 | H24: 28.3 | I24: 30.4 | L24: 2.4 | M24: 153.7 | N24: 156.1 | O24: 186.5
A25: 7 | B25: 面積 | D25: 0.22 | E25: 0.21 | F25: 9.22 | H25: 5.2 | I25: 14.85 | L25: 3.38 | M25: 72.66 | N25: 76.04 | O25: 90.89
B26: 蓄積 | D26: 18 | E26: 35 | F26: 1153 | H26: 409 | I26: 1615 | L26: 186 | M26: 3817 | N26: 4003 | O26: 5618
B27: 成長 | D27: 0.6 | E27: 1.2 | F27: 27.7 | H27: 19.3 | I27: 48.8 | L27: 6.5 | M27: 118.5 | N27: 125 | O27: 173.8
A28: 8 | B28: 面積 | D28: 0.08 | F28: 3.63 | I28: 3.71 | L28: 6.99 | M28: 126.94 | N28: 133.93 | O28: 137.64
B29: 蓄積 | D29: 11 | F29: 642 | I29: 653 | L29: 354 | M29: 7952 | N29: 8306 | O29: 8959
B30: 成長 | D30: 0.3 | F30: 13 | I30: 13.3 | L30: 10.2 | M30: 239.6 | N30: 249.8 | O30: 263.1
A31: 9 | B31: 面積 | C31: 0.1 | E31: 0.93 | F31: 7.94 | H31: 2.6 | I31: 11.57 | L31: 6.46 | M31: 161.33 | N31: 167.79 | O31: 179.36
B32: 蓄積 | C32: 16 | E32: 200 | F32: 1400 | H32: 229 | I32: 1845 | L32: 498 | M32: 11468 | N32: 11966 | O32: 13811
B33: 成長 | C33: 0.3 | E33: 4.3 | F33: 21.4 | H33: 7.3 | I33: 33.3 | L33: 12.5 | M33: 310.1 | N33: 322.6 | O33: 355.9
A34: 10 | B34: 面積 | F34: 16.47 | G34: 1.12 | H34: 7.22 | I34: 24.81 | L34: 10.02 | M34: 309.93 | N34: 319.95 | O34: 344.76
B35: 蓄積 | F35: 3157 | G35: 178 | H35: 755 | I35: 4090 | L35: 762 | M35: 23440 | N35: 24202 | O35: 28292
B36: 成長 | F36: 41.6 | G36: 2.6 | H36: 21.5 | I36: 65.7 | L36: 16.5 | M36: 597.9 | N36: 614.4 | O36: 680.1
A37: 11 | B37: 面積 | D37: 0.01 | E37: 0.46 | F37: 79.31 | G37: 10.33 | H37: 32.85 | I37: 122.96 | L37: 11.3 | M37: 254.91 | N37: 266.21 | O37: 389.17
B38: 蓄積 | D38: 3 | E38: 114 | F38: 16910 | G38: 1759 | H38: 4196 | I38: 22982 | L38: 1036 | M38: 23267 | N38: 24303 | O38: 47285
B39: 成長 | D39: 0 | E39: 1.7 | F39: 186.7 | G39: 24.7 | H39: 88.9 | I39: 302 | L39: 19.9 | M39: 456.9 | N39: 476.8 | O39: 778.8
A40: 12 | B40: 面積 | E40: 0.08 | F40: 201 | H40: 114.2 | I40: 315.28 | L40: 24.59 | M40: 606.65 | N40: 631.24 | O40: 946.52
B41: 蓄積 | E41: 21 | F41: 43377 | H41: 15393 | I41: 58791 | L41: 2163 | M41: 56667 | N41: 58830 | O41: 117621
B42: 成長 | E42: 0.3 | F42: 396.7 | H42: 302.9 | I42: 699.9 | L42: 35.9 | M42: 1050.3 | N42: 1086.2 | O42: 1786.1
A43: 13 | B43: 面積 | C43: 1.03 | D43: 0.14 | E43: 0.19 | F43: 381.95 | G43: 8.07 | H43: 195.23 | I43: 586.61 | L43: 199.07 | M43: 1011 | N43: 1210.07 | O43: 1796.68
B44: 蓄積 | C44: 326 | D44: 38 | E44: 52 | F44: 88084 | G44: 2368 | H44: 26350 | I44: 117218 | L44: 19393 | M44: 102090 | N44: 121483 | O44: 238701
B45: 成長 | C45: 4.7 | D45: 0.6 | E45: 0.8 | F45: 782.8 | G45: 30.8 | H45: 495.8 | I45: 1315.5 | L45: 266.7 | M45: 1592 | N45: 1858.7 | O45: 3174.2
A46: 14 | B46: 面積 | E46: 1.14 | F46: 921.77 | G46: 7.79 | H46: 163.75 | I46: 1094.45 | L46: 192.43 | M46: 1533.42 | N46: 1725.85 | O46: 2820.3
B47: 蓄積 | E47: 222 | F47: 219584 | G47: 1579 | H47: 24626 | I47: 246011 | L47: 21121 | M47: 158992 | N47: 180113 | O47: 426124
B48: 成長 | E48: 2.9 | F48: 1732 | G48: 17.5 | H48: 413.6 | I48: 2166 | L48: 241 | M48: 1858.6 | N48: 2099.6 | O48: 4265.6
A49: 15 以上 | B49: 面積 | C49: 0.74 | D49: 0.22 | E49: 15.75 | F49: 3062.59 | G49: 231.58 | H49: 1145.97 | I49: 4456.85 | J49: 0.31 | L49: 873.73 | M49: 5447.27 | N49: 6321.31 | O49: 10778.16
B50: 蓄積 | C50: 277 | D50: 67 | E50: 4295 | F50: 788082 | G50: 43760 | H50: 235769 | I50: 1072250 | J50: 28 | L50: 97608 | M50: 648242 | N50: 745878 | O50: 1818128
B51: 成長 | C51: 2.2 | D51: 0.5 | E51: 22.6 | F51: 3787.2 | G51: 24.4 | H51: 1637.5 | I51: 5474.4 | J51: 0 | L51: 660.2 | M51: 2481 | N51: 3141.2 | O51: 8615.6
A52: 計 | B52: 面積 | C52: =SUM(C7,C10,C13,C16,C19,C22,C25,C28,C31,C34,C37,C40,C43,C46,C49) -> 1.87 | D52: 1.02 | E52: 18.76 | F52: 4684.78 | G52: 259.61 | H52: 1676.37 | I52: 6642.41 | J52: =SUM(J7,J10,J13,J16,J19,J22,J25,J28,J31,J34,J37,J40,J43,J46,J49) -> 0.31 | K52: 0 | L52: 1330.04 | M52: 9657.78 | N52: =SUM(J52:M52) -> 10988.13 | O52: 17630.54
B53: 蓄積 | C53: 619 | D53: 181 | E53: 4939 | F53: 1162418 | G53: 49699 | H53: 308292 | I53: 1526148 | J53: 28 | K53: 0 | L53: 143216 | M53: 1041434 | N53: =SUM(J53:M53) -> 1184678 | O53: 2710826
B54: 成長 | C54: 7.2 | D54: 4.1 | E54: 33.8 | F54: 6990.3 | G54: 105.1 | H54: 3015.1 | I54: 10155.6 | J54: 0 | K54: 0 | L54: 1273.5 | M54: 8967.2 | N54: =SUM(J54:M54) -> 10240.7 | O54: 20396.3

Sheet 上伊那
A1: 第5表 地域振興局別・人工林天然林別・資源構成表
A3: 上伊那地域振興局(天然林) | O3: 単位 面積 : ha、蓄積 成長量 : ㎥
B4: 樹種 | C4: 針 葉 樹 | J4: 広 葉 樹 | O4: 計
C5: ス ギ | D5: ヒ ノ キ | E5: サ ワ ラ | F5: ア カ マ ツ | G5: カ ラ マ ツ | H5: そ の 他 針 | I5: 小 計 | J5: ク ヌ ギ | K5: ブ ナ | L5: ナ ラ | M5: そ の 他 広 | N5: 小 計
A6: 齢級
A7: 1 | B7: 面積 | G7: 0.04 | I7: 0.04 | J7: 0.02 | M7: 11.93 | N7: 11.95 | O7: =SUM(N7,I7) -> 11.99
B8: 蓄積 | G8: 0 | I8: 0 | J8: 0 | M8: 0 | N8: 0 | O8: 0
B9: 成長 | G9: 0 | I9: 0 | J9: 0 | M9: 0 | N9: 0 | O9: 0
A10: 2 | B10: 面積 | D10: 1.23 | I10: 1.23 | M10: 5.68 | N10: 5.68 | O10: 6.91
B11: 蓄積 | D11: 0 | I11: 0 | M11: 75 | N11: 75 | O11: 75
B12: 成長 | D12: 0 | I12: 0 | M12: 10.9 | N12: 10.9 | O12: 10.9
A13: 3 | B13: 面積 | F13: 0.95 | G13: 0.48 | I13: 1.43 | L13: 0.16 | M13: 8.41 | N13: 8.57 | O13: 10
B14: 蓄積 | F14: 61 | G14: 34 | I14: 95 | L14: 4 | M14: 170 | N14: 174 | O14: 269
B15: 成長 | F15: 8.1 | G15: 3.1 | I15: 11.2 | L15: 0.4 | M15: 15.3 | N15: 15.7 | O15: 26.9
A16: 4 | B16: 面積 | D16: 0.29 | F16: 0.93 | I16: 1.22 | M16: 22.85 | N16: 22.85 | O16: 24.07
B17: 蓄積 | D17: 20 | F17: 82 | I17: 102 | M17: 723 | N17: 723 | O17: 825
B18: 成長 | D18: 1.9 | F18: 6.8 | I18: 8.7 | M18: 49.3 | N18: 49.3 | O18: 58
A19: 5 | B19: 面積 | D19: 1.73 | F19: 4.3 | H19: 0.3 | I19: 6.33 | L19: 2.74 | M19: 37.72 | N19: 40.46 | O19: 46.79
B20: 蓄積 | D20: 183 | F20: 498 | H20: 11 | I20: 692 | L20: 108 | M20: 1425 | N20: 1533 | O20: 2225
B21: 成長 | D21: 10.5 | F21: 25.2 | H21: 0.7 | I21: 36.4 | L21: 5.3 | M21: 76.1 | N21: 81.4 | O21: 117.8
A22: 6 | B22: 面積 | D22: 0.61 | F22: 1.96 | G22: 0.33 | H22: 0.04 | I22: 2.94 | L22: 2.53 | M22: 136 | N22: 138.53 | O22: 141.47
B23: 蓄積 | D23: 67 | F23: 267 | G23: 51 | H23: 3 | I23: 388 | L23: 137 | M23: 6438 | N23: 6575 | O23: 6963
B24: 成長 | D24: 2.9 | F24: 9.8 | G24: 1.2 | H24: 0.3 | I24: 14.2 | L24: 5.3 | M24: 261.3 | N24: 266.6 | O24: 280.8
A25: 7 | B25: 面積 | C25: 0.98 | D25: 0.29 | F25: 25.86 | H25: 0.6 | I25: 27.73 | J25: 0.83 | L25: 24.81 | M25: 191.47 | N25: 217.11 | O25: 244.84
B26: 蓄積 | C26: 199 | D26: 41 | F26: 2618 | H26: 17 | I26: 2875 | J26: 67 | L26: 1547 | M26: 11375 | N26: 12989 | O26: 15864
B27: 成長 | C27: 5.1 | D27: 1.3 | F27: 73.4 | H27: 0.7 | I27: 80.5 | J27: 0.2 | L27: 49.4 | M27: 352.3 | N27: 401.9 | O27: 482.4
A28: 8 | B28: 面積 | D28: 0.16 | F28: 12.93 | H28: 0.61 | I28: 13.7 | J28: 0.16 | L28: 21.64 | M28: 289.64 | N28: 311.44 | O28: 325.14
B29: 蓄積 | D29: 28 | F29: 2287 | H29: 61 | I29: 2376 | J29: 14 | L29: 1589 | M29: 19093 | N29: 20696 | O29: 23072
B30: 成長 | D30: 0.7 | F30: 45.6 | H30: 2.1 | I30: 48.4 | J30: 0 | L30: 46.1 | M30: 577.8 | N30: 623.9 | O30: 672.3
A31: 9 | B31: 面積 | C31: 0.15 | D31: 0.12 | F31: 27.71 | H31: 2.15 | I31: 30.13 | J31: 1.86 | L31: 20.7 | M31: 237.69 | N31: 260.25 | O31: 290.38
B32: 蓄積 | C32: 44 | D32: 25 | F32: 5300 | H32: 246 | I32: 5615 | J32: 165 | L32: 1704 | M32: 18757 | N32: 20626 | O32: 26241
B33: 成長 | C33: 0.7 | D33: 0.5 | F33: 79.5 | H33: 7.3 | I33: 88 | J33: 0.1 | L33: 46.2 | M33: 525 | N33: 571.3 | O33: 659.3
A34: 10 | B34: 面積 | D34: 2.16 | F34: 45.94 | G34: 0.52 | H34: 0.41 | I34: 49.03 | J34: 0.12 | L34: 13.02 | M34: 544.07 | N34: 557.21 | O34: 606.24
B35: 蓄積 | D35: 446 | F35: 9229 | G35: 105 | H35: 52 | I35: 9832 | J35: 8 | L35: 1212 | M35: 45930 | N35: 47150 | O35: 56982
B36: 成長 | D36: 8.6 | F36: 121.4 | G36: 1.7 | H36: 1.5 | I36: 133.2 | J36: 0 | L36: 29.3 | M36: 1168.5 | N36: 1197.8 | O36: 1331
A37: 11 | B37: 面積 | C37: 0.17 | D37: 0.42 | E37: 0.01 | F37: 267.91 | G37: 0.08 | H37: 0.64 | I37: 269.23 | J37: 1.32 | L37: 17.09 | M37: 615.93 | N37: 634.34 | O37: 903.57
B38: 蓄積 | C38: 56 | D38: 106 | E38: 3 | F38: 58967 | G38: 20 | H38: 94 | I38: 59246 | J38: 118 | L38: 1730 | M38: 59786 | N38: 61634 | O38: 120880
B39: 成長 | C39: 0.8 | D39: 1.7 | E39: 0 | F39: 651.6 | G39: 0.3 | H39: 1.8 | I39: 656.2 | J39: 0 | L39: 34.5 | M39: 1172.3 | N39: 1206.8 | O39: 1863
A40: 12 | B40: 面積 | C40: 0.41 | D40: 0.67 | E40: 0.57 | F40: 725.16 | G40: 0.91 | H40: 1.64 | I40: 729.36 | J40: 1.6 | L40: 36.69 | M40: 889.09 | N40: 927.38 | O40: 1656.74
B41: 蓄積 | C41: 141 | D41: 157 | E41: 153 | F41: 166832 | G41: 232 | H41: 266 | I41: 167781 | J41: 144 | L41: 3990 | M41: 92220 | N41: 96354 | O41: 264135
B42: 成長 | C42: 1.8 | D42: 2.3 | E42: 2.1 | F42: 1518.4 | G42: 2.9 | H42: 5 | I42: 1532.5 | J42: 0 | L42: 75.5 | M42: 1764.2 | N42: 1839.7 | O42: 3372.2
A43: 13 | B43: 面積 | D43: 0.78 | E43: 0.35 | F43: 1140.75 | G43: 5.89 | H43: 10.77 | I43: 1158.54 | J43: 6.73 | L43: 69.12 | M43: 1603.5 | N43: 1679.35 | O43: 2837.89
B44: 蓄積 | D44: 214 | E44: 99 | F44: 269300 | G44: 1575 | H44: 1733 | I44: 272921 | J44: 602 | L44: 8120 | M44: 179789 | N44: 188511 | O44: 461432
B45: 成長 | D45: 3 | E45: 1.3 | F45: 2383.6 | G45: 20 | H45: 32.4 | I45: 2440.3 | J45: 0 | L45: 113.2 | M45: 2771.8 | N45: 2885 | O45: 5325.3
A46: 14 | B46: 面積 | D46: 0.39 | E46: 0.67 | F46: 1548.06 | G46: 2.01 | H46: 10.38 | I46: 1561.51 | J46: 13.97 | L46: 153.29 | M46: 2889.13 | N46: 3056.39 | O46: 4617.9
B47: 蓄積 | D47: 112 | E47: 198 | F47: 377298 | G47: 633 | H47: 1465 | I47: 379706 | J47: 1261 | L47: 18819 | M47: 345826 | N47: 365906 | O47: 745612
B48: 成長 | D48: 1.3 | E48: 2.3 | F48: 2977.8 | G48: 6.3 | H48: 23.6 | I48: 3011.3 | J48: 0 | L48: 200.7 | M48: 3738.5 | N48: 3939.2 | O48: 6950.5
A49: 15 以上 | B49: 面積 | C49: 0.03 | D49: 6.19 | E49: 7.12 | F49: 5678.63 | G49: 5.86 | H49: 452.03 | I49: 6149.86 | J49: 38.91 | K49: 7.88 | L49: 318.23 | M49: 8968.84 | N49: 9333.86 | O49: 15483.72
B50: 蓄積 | C50: 12 | D50: 1703 | E50: 2173 | F50: 1523772 | G50: 1835 | H50: 95034 | I50: 1624529 | J50: 3454 | K50: 1095 | L50: 41794 | M50: 1117623 | N50: 1163966 | O50: 2788495
B51: 成長 | C51: 0 | D51: 3.8 | E51: 3.7 | F51: 7679.9 | G51: 12.8 | H51: 666.7 | I51: 8366.9 | J51: 0 | K51: 0 | L51: 183.3 | M51: 5127.7 | N51: 5311 | O51: 13677.9
A52: 計 | B52: 面積 | C52: =SUM(C7,C10,C13,C16,C19,C22,C25,C28,C31,C34,C37,C40,C43,C46,C49) -> 1.74 | D52: 15.04 | E52: 8.72 | F52: 9481.09 | G52: 16.12 | H52: 479.57 | I52: 10002.28 | J52: =SUM(J7,J10,J13,J16,J19,J22,J25,J28,J31,J34,J37,J40,J43,J46,J49) -> 65.52 | K52: 7.88 | L52: 680.02 | M52: 16451.95 | N52: =SUM(J52:M52) -> 17205.37 | O52: 27207.65
B53: 蓄積 | C53: 452 | D53: 3102 | E53: 2626 | F53: 2416511 | G53: 4485 | H53: 98982 | I53: 2526158 | J53: 5833 | K53: 1095 | L53: 80754 | M53: 1899230 | N53: =SUM(J53:M53) -> 1986912 | O53: 4513070
B54: 成長 | C54: 8.4 | D54: 38.5 | E54: 9.4 | F54: 15581.1 | G54: 48.3 | H54: 742.1 | I54: 16427.8 | J54: 0.3 | K54: 0 | L54: 789.2 | M54: 17611 | N54: =SUM(J54:M54) -> 18400.5 | O54: 34828.3

Sheet 南信州
A1: 第5表 地域振興局別・人工林天然林別・資源構成表
A3: 南信州地域振興局(天然林) | O3: 単位 面積 : ha、蓄積 成長量 : ㎥
B4: 樹種 | C4: 針 葉 樹 | J4: 広 葉 樹 | O4: 計
C5: ス ギ | D5: ヒ ノ キ | E5: サ ワ ラ | F5: ア カ マ ツ | G5: カ ラ マ ツ | H5: そ の 他 針 | I5: 小 計 | J5: ク ヌ ギ | K5: ブ ナ | L5: ナ ラ | M5: そ の 他 広 | N5: 小 計
A6: 齢級
A7: 1 | B7: 面積 | I7: 0 | L7: 3.68 | M7: 2.02 | N7: 5.7 | O7: =SUM(N7,I7) -> 5.7
B8: 蓄積 | I8: 0 | L8: 0 | M8: 0 | N8: 0 | O8: 0
B9: 成長 | I9: 0 | L9: 0 | M9: 0 | N9: 0 | O9: 0
A10: 2 | B10: 面積 | I10: 0 | L10: 0.47 | M10: 8.62 | N10: 9.09 | O10: 9.09
B11: 蓄積 | I11: 0 | L11: 6 | M11: 115 | N11: 121 | O11: 121
B12: 成長 | I12: 0 | L12: 0.9 | M12: 16.3 | N12: 17.2 | O12: 17.2
A13: 3 | B13: 面積 | C13: 0.08 | D13: 0.52 | H13: 0.24 | I13: 0.84 | L13: 3.94 | M13: 108.57 | N13: 112.51 | O13: 113.35
B14: 蓄積 | C14: 7 | D14: 24 | H14: 6 | I14: 37 | L14: 95 | M14: 2415 | N14: 2510 | O14: 2547
B15: 成長 | C15: 1.4 | D15: 5.2 | H15: 0.8 | I15: 7.4 | L15: 8.1 | M15: 206.6 | N15: 214.7 | O15: 222.1
A16: 4 | B16: 面積 | D16: 1.34 | F16: 1.34 | I16: 2.68 | L16: 2.09 | M16: 48.83 | N16: 50.92 | O16: 53.6
B17: 蓄積 | D17: 103 | F17: 109 | I17: 212 | L17: 61 | M17: 1509 | N17: 1570 | O17: 1782
B18: 成長 | D18: 9.6 | F18: 9 | I18: 18.6 | L18: 4 | M18: 98.8 | N18: 102.8 | O18: 121.4
A19: 5 | B19: 面積 | D19: 0.63 | F19: 3.09 | H19: 0.08 | I19: 3.8 | L19: 2.5 | M19: 131.3 | N19: 133.8 | O19: 137.6
B20: 蓄積 | D20: 67 | F20: 290 | H20: 3 | I20: 360 | L20: 105 | M20: 4988 | N20: 5093 | O20: 5453
B21: 成長 | D21: 4 | F21: 15.2 | H21: 0.2 | I21: 19.4 | L21: 5 | M21: 237.3 | N21: 242.3 | O21: 261.7
A22: 6 | B22: 面積 | D22: 0.56 | F22: 3.11 | H22: 0.39 | I22: 4.06 | J22: 0.07 | L22: 5.14 | M22: 347.48 | N22: 352.69 | O22: 356.75
B23: 蓄積 | D23: 69 | F23: 426 | H23: 23 | I23: 518 | J23: 5 | L23: 278 | M23: 16419 | N23: 16702 | O23: 17220
B24: 成長 | D24: 2.9 | F24: 15.7 | H24: 1.2 | I24: 19.8 | J24: 0.1 | L24: 10.5 | M24: 621.9 | N24: 632.5 | O24: 652.3
A25: 7 | B25: 面積 | D25: 0.27 | F25: 35.46 | H25: 0.64 | I25: 36.37 | J25: 2.23 | L25: 28.33 | M25: 839.99 | N25: 870.55 | O25: 906.92
B26: 蓄積 | D26: 44 | F26: 5462 | H26: 42 | I26: 5548 | J26: 176 | L26: 1770 | M26: 48237 | N26: 50183 | O26: 55731
B27: 成長 | D27: 1.5 | F27: 132 | H27: 1.9 | I27: 135.4 | J27: 0.3 | L27: 56.5 | M27: 1565 | N27: 1621.8 | O27: 1757.2
A28: 8 | B28: 面積 | D28: 5.14 | F28: 15.97 | H28: 2.5 | I28: 23.61 | J28: 0.95 | L28: 50.88 | M28: 852.19 | N28: 904.02 | O28: 927.63
B29: 蓄積 | D29: 925 | F29: 2833 | H29: 164 | I29: 3922 | J29: 76 | L29: 3534 | M29: 57834 | N29: 61444 | O29: 65366
B30: 成長 | D30: 24.1 | F30: 57.3 | H30: 6.1 | I30: 87.5 | J30: 0.1 | L30: 101.9 | M30: 1662.6 | N30: 1764.6 | O30: 1852.1
A31: 9 | B31: 面積 | D31: 1.69 | F31: 19.28 | G31: 8 | H31: 15.21 | I31: 44.18 | J31: 0.29 | L31: 72.16 | M31: 824.04 | N31: 896.49 | O31: 940.67
B32: 蓄積 | D32: 363 | F32: 3727 | G32: 1710 | H32: 1521 | I32: 7321 | J32: 24 | L32: 5919 | M32: 62909 | N32: 68852 | O32: 76173
B33: 成長 | D33: 7.9 | F33: 56.4 | G33: 35.7 | H33: 51.7 | I33: 151.7 | J33: 0 | L33: 159.3 | M33: 1673.1 | N33: 1832.4 | O33: 1984.1
A34: 10 | B34: 面積 | D34: 12.65 | F34: 40.23 | H34: 25.42 | I34: 78.3 | J34: 0.02 | K34: 3.86 | L34: 42.6 | M34: 1309.15 | N34: 1355.63 | O34: 1433.93
B35: 蓄積 | D35: 2783 | F35: 8841 | H35: 2967 | I35: 14591 | J35: 2 | K35: 293 | L35: 3847 | M35: 108360 | N35: 112502 | O35: 127093
B36: 成長 | D36: 50.1 | F36: 107.5 | H36: 81.9 | I36: 239.5 | J36: 0 | K36: 9 | L36: 92 | M36: 2530.7 | N36: 2631.7 | O36: 2871.2
A37: 11 | B37: 面積 | C37: 0.92 | D37: 2.33 | F37: 279.72 | G37: 2.92 | H37: 45.09 | I37: 330.98 | J37: 0.58 | K37: 33.07 | L37: 67.97 | M37: 2189.09 | N37: 2290.71 | O37: 2621.69
B38: 蓄積 | C38: 340 | D38: 570 | F38: 61966 | G38: 730 | H38: 6237 | I38: 69843 | J38: 47 | K38: 3095 | L38: 6905 | M38: 202876 | N38: 212923 | O38: 282766
B39: 成長 | C39: 4.4 | D39: 9.1 | F39: 682.2 | G39: 10.2 | H39: 148.1 | I39: 854 | J39: 0 | K39: 80.6 | L39: 137 | M39: 3936.5 | N39: 4154.1 | O39: 5008.1
A40: 12 | B40: 面積 | C40: 0.39 | D40: 1.17 | E40: 1.11 | F40: 535.27 | G40: 3.46 | H40: 46.46 | I40: 587.86 | J40: 3.38 | K40: 2.2 | L40: 146.52 | M40: 3533.94 | N40: 3686.04 | O40: 4273.9
B41: 蓄積 | C41: 140 | D41: 315 | E41: 302 | F41: 121347 | G41: 982 | H41: 5117 | I41: 128203 | J41: 274 | K41: 218 | L41: 15403 | M41: 346122 | N41: 362017 | O41: 490220
B42: 成長 | C42: 1.9 | D42: 4.2 | E42: 4 | F42: 1349.5 | G42: 12.8 | H42: 97.1 | I42: 1469.5 | J42: 0 | K42: 5.6 | L42: 298.3 | M42: 6582.5 | N42: 6886.4 | O42: 8355.9
A43: 13 | B43: 面積 | C43: 0.38 | D43: 0.37 | E43: 0.67 | F43: 867.95 | G43: 0.04 | H43: 156.97 | I43: 1026.38 | J43: 3.96 | K43: 11.31 | L43: 313.17 | M43: 5019.13 | N43: 5347.57 | O43: 6373.95
B44: 蓄積 | C44: 105 | D44: 98 | E44: 182 | F44: 205560 | G44: 12 | H44: 21044 | I44: 227001 | J44: 320 | K44: 991 | L44: 35772 | M44: 541898 | N44: 578981 | O44: 805982
B45: 成長 | C45: 1 | D45: 1.3 | E45: 2.4 | F45: 2195 | G45: 0.2 | H45: 395.6 | I45: 2595.5 | J45: 0.1 | K45: 23.7 | L45: 555.9 | M45: 8664.3 | N45: 9244 | O45: 11839.5
A46: 14 | B46: 面積 | C46: 1.45 | D46: 1.8 | F46: 1087.52 | G46: 1.04 | H46: 71.81 | I46: 1163.62 | J46: 5.72 | L46: 560.11 | M46: 6163.52 | N46: 6729.35 | O46: 7892.97
B47: 蓄積 | C47: 551 | D47: 535 | F47: 265467 | G47: 366 | H47: 10635 | I47: 277554 | J47: 428 | L47: 66721 | M47: 711211 | N47: 778360 | O47: 1055914
B48: 成長 | C48: 5.3 | D48: 6.2 | F48: 2119.4 | G48: 4.4 | H48: 178 | I48: 2313.3 | J48: 0 | L48: 816.8 | M48: 8873 | N48: 9689.8 | O48: 12003.1
A49: 15 以上 | B49: 面積 | C49: 0.11 | D49: 22.37 | E49: 30.62 | F49: 4617.48 | G49: 11.22 | H49: 3784.36 | I49: 8466.16 | J49: 13.09 | K49: 191.29 | L49: 2161.89 | M49: 30357.75 | N49: 32724.02 | O49: 41190.18
B50: 蓄積 | C50: 45 | D50: 6857 | E50: 9570 | F50: 1218110 | G50: 3121 | H50: 791729 | I50: 2029432 | J50: 968 | K50: 32752 | L50: 274147 | M50: 3687078 | N50: 3994945 | O50: 6024377
B51: 成長 | C51: 0.4 | D51: 44.7 | E51: 11.7 | F51: 5825.3 | G51: 13.5 | H51: 3407.3 | I51: 9302.9 | J51: 0.2 | K51: 119.1 | L51: 1905.5 | M51: 20452 | N51: 22476.8 | O51: 31779.7
A52: 計 | B52: 面積 | C52: =SUM(C7,C10,C13,C16,C19,C22,C25,C28,C31,C34,C37,C40,C43,C46,C49) -> 3.33 | D52: 50.84 | E52: 32.4 | F52: 7506.42 | G52: 26.68 | H52: 4149.17 | I52: 11768.84 | J52: =SUM(J7,J10,J13,J16,J19,J22,J25,J28,J31,J34,J37,J40,J43,J46,J49) -> 30.29 | K52: 241.73 | L52: 3461.45 | M52: 51735.62 | N52: =SUM(J52:M52) -> 55469.09 | O52: 67237.93
B53: 蓄積 | C53: 1188 | D53: 12753 | E53: 10054 | F53: 1894138 | G53: 6921 | H53: 839488 | I53: 2764542 | J53: 2320 | K53: 37349 | L53: 414563 | M53: 5791971 | N53: =SUM(J53:M53) -> 6246203 | O53: 9010745
B54: 成長 | C54: 14.4 | D54: 170.8 | E54: 18.1 | F54: 12564.5 | G54: 76.8 | H54: 4369.9 | I54: 17214.5 | J54: 0.8 | K54: 238 | L54: 4151.7 | M54: 57120.6 | N54: =SUM(J54:M54) -> 61511.1 | O54: 78725.6

Sheet 木曽
A1: 第5表 地域振興局別・人工林天然林別・資源構成表
A3: 木曽地域振興局(天然林) | O3: 単位 面積 : ha、蓄積 成長量 : ㎥
B4: 樹種 | C4: 針 葉 樹 | J4: 広 葉 樹 | O4: 計
C5: ス ギ | D5: ヒ ノ キ | E5: サ ワ ラ | F5: ア カ マ ツ | G5: カ ラ マ ツ | H5: そ の 他 針 | I5: 小 計 | J5: ク ヌ ギ | K5: ブ ナ | L5: ナ ラ | M5: そ の 他 広 | N5: 小 計
A6: 齢級
A7: 1 | B7: 面積 | I7: 0 | M7: 11.38 | N7: 11.38 | O7: =SUM(N7,I7) -> 11.38
B8: 蓄積 | I8: 0 | M8: 0 | N8: 0 | O8: 0
B9: 成長 | I9: 0 | M9: 0 | N9: 0 | O9: 0
A10: 2 | B10: 面積 | F10: 0.06 | I10: 0.06 | M10: 1.19 | N10: 1.19 | O10: 1.25
B11: 蓄積 | F11: 0 | I11: 0 | M11: 12 | N11: 12 | O11: 12
B12: 成長 | F12: 0 | I12: 0 | M12: 1.5 | N12: 1.5 | O12: 1.5
A13: 3 | B13: 面積 | D13: 2.72 | I13: 2.72 | M13: 7.12 | N13: 7.12 | O13: 9.84
B14: 蓄積 | D14: 77 | I14: 77 | M14: 149 | N14: 149 | O14: 226
B15: 成長 | D15: 14.8 | I15: 14.8 | M15: 13.5 | N15: 13.5 | O15: 28.3
A16: 4 | B16: 面積 | D16: 0.99 | F16: 0.13 | G16: 0.06 | I16: 1.18 | L16: 0.27 | M16: 21.81 | N16: 22.08 | O16: 23.26
B17: 蓄積 | D17: 87 | F17: 9 | G17: 6 | I17: 102 | L17: 8 | M17: 690 | N17: 698 | O17: 800
B18: 成長 | D18: 7.9 | F18: 0.7 | G18: 0.4 | I18: 9 | L18: 0.5 | M18: 46.8 | N18: 47.3 | O18: 56.3
A19: 5 | B19: 面積 | D19: 4.74 | F19: 0.81 | H19: 0.11 | I19: 5.66 | L19: 0.04 | M19: 39.81 | N19: 39.85 | O19: 45.51
B20: 蓄積 | D20: 470 | F20: 75 | H20: 5 | I20: 550 | L20: 2 | M20: 1495 | N20: 1497 | O20: 2047
B21: 成長 | D21: 27.2 | F21: 3.8 | H21: 0.3 | I21: 31.3 | L21: 0.1 | M21: 80 | N21: 80.1 | O21: 111.4
A22: 6 | B22: 面積 | D22: 0.75 | F22: 0.06 | H22: 0.55 | I22: 1.36 | L22: 13.61 | M22: 97.06 | N22: 110.67 | O22: 112.03
B23: 蓄積 | D23: 104 | F23: 9 | H23: 33 | I23: 146 | L23: 664 | M23: 4525 | N23: 5189 | O23: 5335
B24: 成長 | D24: 4.4 | F24: 0.3 | H24: 1.7 | I24: 6.4 | L24: 25.7 | M24: 184.1 | N24: 209.8 | O24: 216.2
A25: 7 | B25: 面積 | D25: 0.15 | F25: 1.39 | G25: 1.56 | H25: 0.1 | I25: 3.2 | L25: 24.98 | M25: 148.23 | N25: 173.21 | O25: 176.41
B26: 蓄積 | D26: 12 | F26: 193 | G26: 82 | H26: 8 | I26: 295 | L26: 1513 | M26: 8345 | N26: 9858 | O26: 10153
B27: 成長 | D27: 0.4 | F27: 5.5 | G27: 1.8 | H27: 0.4 | I27: 8.1 | L27: 49.3 | M27: 259 | N27: 308.3 | O27: 316.4
A28: 8 | B28: 面積 | D28: 0.42 | F28: 4.81 | G28: 0.09 | H28: 1.12 | I28: 6.44 | L28: 23.65 | M28: 217.75 | N28: 241.4 | O28: 247.84
B29: 蓄積 | D29: 74 | F29: 790 | G29: 19 | H29: 92 | I29: 975 | L29: 1695 | M29: 14305 | N29: 16000 | O29: 16975
B30: 成長 | D30: 2 | F30: 17.5 | G30: 0.4 | H30: 3.6 | I30: 23.5 | L30: 49.1 | M30: 430.8 | N30: 479.9 | O30: 503.4
A31: 9 | B31: 面積 | D31: 0.05 | F31: 6.74 | G31: 0.67 | H31: 1.6 | I31: 9.06 | L31: 17.69 | M31: 274.72 | N31: 292.41 | O31: 301.47
B32: 蓄積 | D32: 10 | F32: 1222 | G32: 157 | H32: 152 | I32: 1541 | L32: 1374 | M32: 20839 | N32: 22213 | O32: 23754
B33: 成長 | D33: 0.2 | F33: 18.8 | G33: 2.8 | H33: 5 | I33: 26.8 | L33: 34.8 | M33: 577.4 | N33: 612.2 | O33: 639
A34: 10 | B34: 面積 | D34: 1.17 | E34: 0.45 | F34: 11.25 | G34: 1.09 | H34: 1.13 | I34: 15.09 | J34: 0.64 | L34: 62.98 | M34: 473.57 | N34: 537.19 | O34: 552.28
B35: 蓄積 | D35: 214 | E35: 107 | F35: 2255 | G35: 269 | H35: 135 | I35: 2980 | J35: 44 | L35: 5661 | M35: 39968 | N35: 45673 | O35: 48653
B36: 成長 | D36: 4.3 | E36: 1.9 | F36: 30.2 | G36: 4 | H36: 4.1 | I36: 44.5 | J36: 0.1 | L36: 133.7 | M36: 1013 | N36: 1146.8 | O36: 1191.3
A37: 11 | B37: 面積 | D37: 1.59 | E37: 0.55 | F37: 106.06 | G37: 1.14 | H37: 6.31 | I37: 115.65 | L37: 130.07 | M37: 1096.37 | N37: 1226.44 | O37: 1342.09
B38: 蓄積 | D38: 378 | E38: 136 | F38: 22396 | G38: 305 | H38: 952 | I38: 24167 | L38: 12729 | M38: 105425 | N38: 118154 | O38: 142321
B39: 成長 | D39: 5.9 | E39: 2.2 | F39: 250.3 | G39: 4.3 | H39: 19.4 | I39: 282.1 | L39: 249.4 | M39: 2073.9 | N39: 2323.3 | O39: 2605.4
A40: 12 | B40: 面積 | D40: 0.77 | E40: 0.17 | F40: 361.08 | G40: 2.03 | H40: 1.99 | I40: 366.04 | L40: 184.66 | M40: 1808.6 | N40: 1993.26 | O40: 2359.3
B41: 蓄積 | D41: 206 | E41: 47 | F41: 81614 | G41: 568 | H41: 301 | I41: 82736 | L41: 18642 | M41: 182316 | N41: 200958 | O41: 283694
B42: 成長 | D42: 2.9 | E42: 0.7 | F42: 750 | G42: 7.3 | H42: 5.9 | I42: 766.8 | L42: 352.5 | M42: 3474.2 | N42: 3826.7 | O42: 4593.5
A43: 13 | B43: 面積 | C43: 0.97 | D43: 1.67 | E43: 2.66 | F43: 503.43 | G43: 5.32 | H43: 3.84 | I43: 517.89 | L43: 231.54 | M43: 2842.38 | N43: 3073.92 | O43: 3591.81
B44: 蓄積 | C44: 360 | D44: 445 | E44: 689 | F44: 116006 | G44: 1444 | H44: 640 | I44: 119584 | L44: 26265 | M44: 308538 | N44: 334803 | O44: 454387
B45: 成長 | C45: 3.7 | D45: 5.8 | E45: 9.9 | F45: 1046.5 | G45: 18 | H45: 12.3 | I45: 1096.2 | L45: 399.1 | M45: 4946.6 | N45: 5345.7 | O45: 6441.9
A46: 14 | B46: 面積 | C46: 0.07 | D46: 2.94 | E46: 19.44 | F46: 614 | G46: 3.11 | H46: 21.3 | I46: 660.86 | L46: 384.3 | M46: 3652.78 | N46: 4037.08 | O46: 4697.94
B47: 蓄積 | C47: 26 | D47: 824 | E47: 5517 | F47: 144795 | G47: 984 | H47: 3884 | I47: 156030 | L47: 45053 | M47: 419048 | N47: 464101 | O47: 620131
B48: 成長 | C48: 0.2 | D48: 10 | E48: 66.4 | F48: 1190.9 | G48: 7.5 | H48: 62.2 | I48: 1337.2 | L48: 488.6 | M48: 4774.6 | N48: 5263.2 | O48: 6600.4
A49: 15 以上 | B49: 面積 | C49: 1.06 | D49: 41.62 | E49: 128.21 | F49: 2160.98 | G49: 14.63 | H49: 375.19 | I49: 2721.69 | J49: 0.08 | L49: 888.23 | M49: 11037.45 | N49: 11925.76 | O49: 14647.45
B50: 蓄積 | C50: 427 | D50: 12166 | E50: 36261 | F50: 573769 | G50: 4510 | H50: 83910 | I50: 711043 | J50: 6 | L50: 111860 | M50: 1359027 | N50: 1470893 | O50: 2181936
B51: 成長 | C51: 0.1 | D51: 15 | E51: 67.2 | F51: 2587.6 | G51: 19 | H51: 504.9 | I51: 3193.8 | J51: 0 | L51: 500.3 | M51: 5547.5 | N51: 6047.8 | O51: 9241.6
A52: 計 | B52: 面積 | C52: =SUM(C7,C10,C13,C16,C19,C22,C25,C28,C31,C34,C37,C40,C43,C46,C49) -> 2.1 | D52: 59.58 | E52: 151.48 | F52: 3770.8 | G52: 29.7 | H52: 413.24 | I52: 4426.9 | J52: =SUM(J7,J10,J13,J16,J19,J22,J25,J28,J31,J34,J37,J40,J43,J46,J49) -> 0.72 | K52: 0 | L52: 1962.02 | M52: 21730.22 | N52: =SUM(J52:M52) -> 23692.96 | O52: 28119.86
B53: 蓄積 | C53: 813 | D53: 15067 | E53: 42757 | F53: 943133 | G53: 8344 | H53: 90112 | I53: 1100226 | J53: 50 | K53: 0 | L53: 225466 | M53: 2464682 | N53: =SUM(J53:M53) -> 2690198 | O53: 3790424
B54: 成長 | C54: 4 | D54: 100.8 | E54: 148.3 | F54: 5902.1 | G54: 65.5 | H54: 619.8 | I54: 6840.5 | J54: 0.1 | K54: 0 | L54: 2283.1 | M54: 23422.9 | N54: =SUM(J54:M54) -> 25706.1 | O54: 32546.6

Sheet 松本
A1: 第5表 地域振興局別・人工林天然林別・資源構成表
A3: 松本地域振興局(天然林) | O3: 単位 面積 : ha、蓄積 成長量 : ㎥
B4: 樹種 | C4: 針 葉 樹 | J4: 広 葉 樹 | O4: 計
C5: ス ギ | D5: ヒ ノ キ | E5: サ ワ ラ | F5: ア カ マ ツ | G5: カ ラ マ ツ | H5: そ の 他 針 | I5: 小 計 | J5: ク ヌ ギ | K5: ブ ナ | L5: ナ ラ | M5: そ の 他 広 | N5: 小 計
A6: 齢級
A7: 1 | B7: 面積 | I7: 0 | M7: 21.04 | N7: 21.04 | O7: =SUM(N7,I7) -> 21.04
B8: 蓄積 | I8: 0 | M8: 0 | N8: 0 | O8: 0
B9: 成長 | I9: 0 | M9: 0 | N9: 0 | O9: 0
A10: 2 | B10: 面積 | F10: 0.05 | I10: 0.05 | M10: 191.75 | N10: 191.75 | O10: 191.8
B11: 蓄積 | F11: 0 | I11: 0 | M11: 2238 | N11: 2238 | O11: 2238
B12: 成長 | F12: 0 | I12: 0 | M12: 301.7 | N12: 301.7 | O12: 301.7
A13: 3 | B13: 面積 | F13: 1.25 | I13: 1.25 | L13: 0.59 | M13: 65.57 | N13: 66.16 | O13: 67.41
B14: 蓄積 | F14: 71 | I14: 71 | L14: 15 | M14: 1481 | N14: 1496 | O14: 1567
B15: 成長 | F15: 9.5 | I15: 9.5 | L15: 1.3 | M15: 129.7 | N15: 131 | O15: 140.5
A16: 4 | B16: 面積 | D16: 0.16 | F16: 3.52 | I16: 3.68 | J16: 3.12 | L16: 0.25 | M16: 24.32 | N16: 27.69 | O16: 31.37
B17: 蓄積 | D17: 7 | F17: 288 | I17: 295 | J17: 182 | L17: 9 | M17: 661 | N17: 852 | O17: 1147
B18: 成長 | D18: 0.7 | F18: 23.6 | I18: 24.3 | J18: 8.5 | L18: 0.6 | M18: 46.2 | N18: 55.3 | O18: 79.6
A19: 5 | B19: 面積 | D19: 0.61 | F19: 9.19 | G19: 0.13 | I19: 9.93 | J19: 2.48 | L19: 4.24 | M19: 99.96 | N19: 106.68 | O19: 116.61
B20: 蓄積 | D20: 29 | F20: 726 | G20: 16 | I20: 771 | J20: 160 | L20: 169 | M20: 3898 | N20: 4227 | O20: 4998
B21: 成長 | D21: 1.8 | F21: 43.1 | G21: 0.9 | I21: 45.8 | J21: 5.1 | L21: 8.8 | M21: 205.5 | N21: 219.4 | O21: 265.2
A22: 6 | B22: 面積 | F22: 7.16 | G22: 2.33 | H22: 0.07 | I22: 9.56 | J22: 16.05 | L22: 22.93 | M22: 253.09 | N22: 292.07 | O22: 301.63
B23: 蓄積 | F23: 827 | G23: 359 | H23: 4 | I23: 1190 | J23: 1137 | L23: 1148 | M23: 11281 | N23: 13566 | O23: 14756
B24: 成長 | F24: 33.9 | G24: 12.9 | H24: 0.2 | I24: 47 | J24: 26.1 | L24: 47.1 | M24: 455.2 | N24: 528.4 | O24: 575.4
A25: 7 | B25: 面積 | C25: 0.09 | D25: 0.15 | F25: 8.44 | G25: 0.08 | H25: 0.02 | I25: 8.78 | J25: 30.06 | L25: 40.57 | M25: 505.1 | N25: 575.73 | O25: 584.51
B26: 蓄積 | C26: 23 | D26: 10 | F26: 1163 | G26: 14 | H26: 0 | I26: 1210 | J26: 2358 | L26: 2457 | M26: 26922 | N26: 31737 | O26: 32947
B27: 成長 | C27: 0.8 | D27: 0.5 | F27: 31.9 | G27: 0.4 | H27: 0 | I27: 33.6 | J27: 37.3 | L27: 76.2 | M27: 832.2 | N27: 945.7 | O27: 979.3
A28: 8 | B28: 面積 | D28: 0.08 | F28: 7.07 | G28: 0.06 | I28: 7.21 | J28: 41.89 | L28: 61.13 | M28: 587.11 | N28: 690.13 | O28: 697.34
B29: 蓄積 | D29: 6 | F29: 1118 | G29: 12 | I29: 1136 | J29: 3293 | L29: 4206 | M29: 36849 | N29: 44348 | O29: 45484
B30: 成長 | D30: 0.2 | F30: 23.1 | G30: 0.3 | I30: 23.6 | J30: 29.8 | L30: 127.3 | M30: 1114.7 | N30: 1271.8 | O30: 1295.4
A31: 9 | B31: 面積 | E31: 0.06 | F31: 26.16 | G31: 0.37 | H31: 0.16 | I31: 26.75 | J31: 48.99 | L31: 66.92 | M31: 476.44 | N31: 592.35 | O31: 619.1
B32: 蓄積 | E32: 9 | F32: 4545 | G32: 80 | H32: 19 | I32: 4653 | J32: 4088 | L32: 5339 | M32: 35552 | N32: 44979 | O32: 49632
B33: 成長 | E33: 0.2 | F33: 71.9 | G33: 1.8 | H33: 0.6 | I33: 74.5 | J33: 19.2 | L33: 148.1 | M33: 972.7 | N33: 1140 | O33: 1214.5
A34: 10 | B34: 面積 | C34: 0.47 | D34: 0.03 | E34: 0.07 | F34: 50.71 | G34: 0.67 | H34: 1.05 | I34: 53 | J34: 64.35 | L34: 58.65 | M34: 765.67 | N34: 888.67 | O34: 941.67
B35: 蓄積 | C35: 189 | D35: 5 | E35: 13 | F35: 9267 | G35: 169 | H35: 116 | I35: 9759 | J35: 5486 | L35: 5210 | M35: 64041 | N35: 74737 | O35: 84496
B36: 成長 | C36: 2.8 | D36: 0.1 | E36: 0.3 | F36: 126.7 | G36: 2.5 | H36: 3.2 | I36: 135.6 | J36: 13.1 | L36: 133.7 | M36: 1629.8 | N36: 1776.6 | O36: 1912.2
A37: 11 | B37: 面積 | E37: 0.08 | F37: 80.92 | G37: 0.45 | H37: 6.96 | I37: 88.41 | J37: 28.11 | L37: 65.44 | M37: 872.59 | N37: 966.14 | O37: 1054.55
B38: 蓄積 | E38: 16 | F38: 16114 | G38: 115 | H38: 856 | I38: 17101 | J38: 2439 | L38: 6457 | M38: 80550 | N38: 89446 | O38: 106547
B39: 成長 | E39: 0.3 | F39: 182.4 | G39: 1.6 | H39: 19.9 | I39: 204.2 | J39: 0 | L39: 127 | M39: 1556.7 | N39: 1683.7 | O39: 1887.9
A40: 12 | B40: 面積 | C40: 0.04 | E40: 0.13 | F40: 171.24 | G40: 2.66 | H40: 6.42 | I40: 180.49 | J40: 55.46 | L40: 80.76 | M40: 1320.29 | N40: 1456.51 | O40: 1637
B41: 蓄積 | C41: 18 | E41: 24 | F41: 35594 | G41: 589 | H41: 949 | I41: 37174 | J41: 4711 | L41: 8370 | M41: 130424 | N41: 143505 | O41: 180679
B42: 成長 | C42: 0.2 | E42: 0.5 | F42: 344.2 | G42: 7.7 | H42: 17.9 | I42: 370.5 | J42: 0 | L42: 156.7 | M42: 2441.7 | N42: 2598.4 | O42: 2968.9
A43: 13 | B43: 面積 | E43: 0.09 | F43: 471.61 | G43: 406.4 | H43: 31.81 | I43: 909.91 | J43: 145.45 | L43: 194.01 | M43: 3352.39 | N43: 3691.85 | O43: 4601.76
B44: 蓄積 | E44: 17 | F44: 101523 | G44: 85206 | H44: 3437 | I44: 190183 | J44: 12133 | L44: 20783 | M44: 346253 | N44: 379169 | O44: 569352
B45: 成長 | E45: 0.3 | F45: 950.7 | G45: 1095.3 | H45: 64.4 | I45: 2110.7 | J45: 0 | L45: 333.8 | M45: 5466.5 | N45: 5800.3 | O45: 7911
A46: 14 | B46: 面積 | C46: 0.12 | E46: 2.6 | F46: 927.88 | G46: 6.94 | H46: 14.67 | I46: 952.21 | J46: 298.58 | L46: 356.21 | M46: 6373.07 | N46: 7027.86 | O46: 7980.07
B47: 蓄積 | C47: 57 | E47: 406 | F47: 205838 | G47: 2201 | H47: 2346 | I47: 210848 | J47: 25289 | L47: 40380 | M47: 696708 | N47: 762377 | O47: 973225
B48: 成長 | C48: 0.5 | E48: 5.9 | F48: 1653.5 | G48: 18.2 | H48: 40.5 | I48: 1718.6 | J48: 0 | L48: 464.9 | M48: 8252.3 | N48: 8717.2 | O48: 10435.8
A49: 15 以上 | B49: 面積 | C49: 0.58 | D49: 0.21 | E49: 36.79 | F49: 6046.82 | G49: 15.31 | H49: 780.14 | I49: 6879.85 | J49: 185.06 | K49: 15.31 | L49: 483.26 | M49: 13849.93 | N49: 14533.56 | O49: 21413.41
B50: 蓄積 | C50: 278 | D50: 37 | E50: 7339 | F50: 1440852 | G50: 3721 | H50: 165804 | I50: 1618031 | J50: 15655 | K50: 2057 | L50: 57918 | M50: 1586086 | N50: 1661716 | O50: 3279747
B51: 成長 | C51: 1.2 | D51: 0.4 | E51: 21 | F51: 5953.9 | G51: 2.3 | H51: 658.8 | I51: 6637.6 | J51: 0 | K51: 3.1 | L51: 378.3 | M51: 9096.1 | N51: 9477.5 | O51: 16115.1
A52: 計 | B52: 面積 | C52: =SUM(C7,C10,C13,C16,C19,C22,C25,C28,C31,C34,C37,C40,C43,C46,C49) -> 1.3 | D52: 1.24 | E52: 39.82 | F52: 7812.02 | G52: 435.4 | H52: 841.3 | I52: 9131.08 | J52: =SUM(J7,J10,J13,J16,J19,J22,J25,J28,J31,J34,J37,J40,J43,J46,J49) -> 919.6 | K52: 15.31 | L52: 1434.96 | M52: 28758.32 | N52: =SUM(J52:M52) -> 31128.19 | O52: 40259.27
B53: 蓄積 | C53: 565 | D53: 94 | E53: 7824 | F53: 1817926 | G53: 92482 | H53: 173531 | I53: 2092422 | J53: 76931 | K53: 2057 | L53: 152461 | M53: 3022944 | N53: =SUM(J53:M53) -> 3254393 | O53: 5346815
B54: 成長 | C54: 5.5 | D54: 3.7 | E54: 28.5 | F54: 9448.4 | G54: 1143.9 | H54: 805.5 | I54: 11435.5 | J54: 139.1 | K54: 3.1 | L54: 2003.8 | M54: 32501 | N54: =SUM(J54:M54) -> 34647 | O54: 46082.5

Sheet 北アルプス
A1: 第5表 地域振興局別・人工林天然林別・資源構成表
A3: 北アルプス地域振興局(天然林) | O3: 単位 面積 : ha、蓄積 成長量 : ㎥
B4: 樹種 | C4: 針 葉 樹 | J4: 広 葉 樹 | O4: 計
C5: ス ギ | D5: ヒ ノ キ | E5: サ ワ ラ | F5: ア カ マ ツ | G5: カ ラ マ ツ | H5: そ の 他 針 | I5: 小 計 | J5: ク ヌ ギ | K5: ブ ナ | L5: ナ ラ | M5: そ の 他 広 | N5: 小 計
A6: 齢級
A7: 1 | B7: 面積 | F7: 0.04 | I7: 0.04 | L7: 0.18 | M7: 40.6 | N7: 40.78 | O7: =SUM(N7,I7) -> 40.82
B8: 蓄積 | F8: 0 | I8: 0 | L8: 0 | M8: 0 | N8: 0 | O8: 0
B9: 成長 | F9: 0 | I9: 0 | L9: 0 | M9: 0 | N9: 0 | O9: 0
A10: 2 | B10: 面積 | I10: 0 | M10: 6.88 | N10: 6.88 | O10: 6.88
B11: 蓄積 | I11: 0 | M11: 62 | N11: 62 | O11: 62
B12: 成長 | I12: 0 | M12: 7.8 | N12: 7.8 | O12: 7.8
A13: 3 | B13: 面積 | I13: 0 | M13: 14.87 | N13: 14.87 | O13: 14.87
B14: 蓄積 | I14: 0 | M14: 313 | N14: 313 | O14: 313
B15: 成長 | I15: 0 | M15: 28.7 | N15: 28.7 | O15: 28.7
A16: 4 | B16: 面積 | D16: 0.16 | F16: 0.11 | I16: 0.27 | L16: 1.14 | M16: 16.93 | N16: 18.07 | O16: 18.34
B17: 蓄積 | D17: 4 | F17: 3 | I17: 7 | L17: 37 | M17: 474 | N17: 511 | O17: 518
B18: 成長 | D18: 0.4 | F18: 0.3 | I18: 0.7 | L18: 2.5 | M18: 32.3 | N18: 34.8 | O18: 35.5
A19: 5 | B19: 面積 | D19: 0.23 | F19: 0.05 | I19: 0.28 | J19: 0.6 | K19: 0.45 | L19: 2.81 | M19: 145.57 | N19: 149.43 | O19: 149.71
B20: 蓄積 | D20: 7 | F20: 6 | I20: 13 | J20: 30 | K20: 9 | L20: 104 | M20: 4624 | N20: 4767 | O20: 4780
B21: 成長 | D21: 0.5 | F21: 0.3 | I21: 0.8 | J21: 0.9 | K21: 0.7 | L21: 5.6 | M21: 252.7 | N21: 259.9 | O21: 260.7
A22: 6 | B22: 面積 | C22: 1.5 | F22: 0.48 | I22: 1.98 | J22: 0.14 | K22: 3.64 | L22: 16.71 | M22: 311.13 | N22: 331.62 | O22: 333.6
B23: 蓄積 | C23: 201 | F23: 68 | I23: 269 | J23: 8 | K23: 95 | L23: 741 | M23: 12711 | N23: 13555 | O23: 13824
B24: 成長 | C24: 10.9 | F24: 2.5 | I24: 13.4 | J24: 0.2 | K24: 6.2 | L24: 30 | M24: 504.4 | N24: 540.8 | O24: 554.2
A25: 7 | B25: 面積 | C25: 0.1 | F25: 3.06 | G25: 0.08 | H25: 0.03 | I25: 3.27 | J25: 0.62 | K25: 3.94 | L25: 14.15 | M25: 491.49 | N25: 510.2 | O25: 513.47
B26: 蓄積 | C26: 18 | F26: 401 | G26: 10 | H26: 2 | I26: 431 | J26: 40 | K26: 134 | L26: 749 | M26: 24679 | N26: 25602 | O26: 26033
B27: 成長 | C27: 0.8 | F27: 12.2 | G27: 0.3 | H27: 0.1 | I27: 13.4 | J27: 0.6 | K27: 7.5 | L27: 22.9 | M27: 757.5 | N27: 788.5 | O27: 801.9
A28: 8 | B28: 面積 | F28: 1.06 | I28: 1.06 | J28: 2.1 | L28: 19.73 | M28: 430.45 | N28: 452.28 | O28: 453.34
B29: 蓄積 | F29: 173 | I29: 173 | J29: 146 | L29: 1203 | M29: 24397 | N29: 25746 | O29: 25919
B30: 成長 | F30: 3.9 | I30: 3.9 | J30: 1.2 | L30: 36.5 | M30: 744.2 | N30: 781.9 | O30: 785.8
A31: 9 | B31: 面積 | C31: 1.32 | D31: 2.64 | F31: 2.5 | G31: 0.17 | H31: 1.56 | I31: 8.19 | J31: 7.6 | K31: 15.13 | L31: 36.09 | M31: 621.66 | N31: 680.48 | O31: 688.67
B32: 蓄積 | C32: 344 | D32: 446 | F32: 421 | G32: 37 | H32: 128 | I32: 1376 | J32: 553 | K32: 691 | L32: 2589 | M32: 40707 | N32: 44540 | O32: 45916
B33: 成長 | C33: 6.7 | D33: 12 | F33: 6.8 | G33: 0.8 | H33: 4 | I33: 30.3 | J33: 2.1 | K33: 24.8 | L33: 68.4 | M33: 1065.2 | N33: 1160.5 | O33: 1190.8
A34: 10 | B34: 面積 | C34: 0.1 | F34: 15.63 | I34: 15.73 | J34: 1.1 | K34: 13.37 | L34: 55.76 | M34: 831.2 | N34: 901.43 | O34: 917.16
B35: 蓄積 | C35: 32 | F35: 2862 | I35: 2894 | J35: 88 | K35: 801 | L35: 4468 | M35: 63687 | N35: 69044 | O35: 71938
B36: 成長 | C36: 0.5 | F36: 39.6 | I36: 40.1 | J36: 0.1 | K36: 24.2 | L36: 113.7 | M36: 1618 | N36: 1756 | O36: 1796.1
A37: 11 | B37: 面積 | F37: 21.74 | I37: 21.74 | J37: 0.26 | K37: 71.76 | L37: 50.15 | M37: 956.96 | N37: 1079.13 | O37: 1100.87
B38: 蓄積 | F38: 4168 | I38: 4168 | J38: 16 | K38: 3839 | L38: 4419 | M38: 80800 | N38: 89074 | O38: 93242
B39: 成長 | F39: 47.9 | I39: 47.9 | J39: 0 | K39: 100.2 | L39: 82.5 | M39: 1495.7 | N39: 1678.4 | O39: 1726.3
A40: 12 | B40: 面積 | C40: 0.4 | F40: 18.5 | G40: 0.17 | H40: 2.22 | I40: 21.29 | J40: 1.6 | K40: 104.44 | L40: 107.51 | M40: 1626.14 | N40: 1839.69 | O40: 1860.98
B41: 蓄積 | C41: 124 | F41: 3621 | G41: 25 | H41: 307 | I41: 4077 | J41: 117 | K41: 7669 | L41: 9644 | M41: 145385 | N41: 162815 | O41: 166892
B42: 成長 | C42: 1.5 | F42: 36.4 | G42: 0.3 | H42: 5.8 | I42: 44 | J42: 0 | K42: 182.7 | L42: 176.7 | M42: 2671.1 | N42: 3030.5 | O42: 3074.5
A43: 13 | B43: 面積 | C43: 0.73 | F43: 95.55 | G43: 0.15 | H43: 1.36 | I43: 97.79 | J43: 7.97 | K43: 27.27 | L43: 170.45 | M43: 2477.39 | N43: 2683.08 | O43: 2780.87
B44: 蓄積 | C44: 98 | F44: 18874 | G44: 32 | H44: 199 | I44: 19203 | J44: 596 | K44: 1642 | L44: 16618 | M44: 229797 | N44: 248653 | O44: 267856
B45: 成長 | C45: 1.1 | F45: 183.6 | G45: 0.4 | H45: 3.6 | I45: 188.7 | J45: 0 | K45: 38.3 | L45: 275.8 | M45: 3802.1 | N45: 4116.2 | O45: 4304.9
A46: 14 | B46: 面積 | C46: 9.58 | D46: 1.34 | F46: 188.68 | G46: 0.78 | H46: 1.74 | I46: 202.12 | J46: 17.13 | K46: 51.65 | L46: 248.2 | M46: 3242.07 | N46: 3559.05 | O46: 3761.17
B47: 蓄積 | C47: 1651 | D47: 190 | F47: 40636 | G47: 242 | H47: 258 | I47: 42977 | J47: 1305 | K47: 4529 | L47: 25801 | M47: 322855 | N47: 354490 | O47: 397467
B48: 成長 | C48: 16.6 | D48: 2.9 | F48: 330.5 | G48: 2.7 | H48: 4.6 | I48: 357.3 | J48: 0 | K48: 91.1 | L48: 326.8 | M48: 4136.2 | N48: 4554.1 | O48: 4911.4
A49: 15 以上 | B49: 面積 | C49: 85.22 | D49: 1.76 | E49: 6.68 | F49: 1313.58 | G49: 0.49 | H49: 403.57 | I49: 1811.3 | J49: 47.12 | K49: 1810.75 | L49: 1022.4 | M49: 16605.58 | N49: 19485.85 | O49: 21297.15
B50: 蓄積 | C50: 35888 | D50: 396 | E50: 1231 | F50: 302698 | G50: 116 | H50: 84944 | I50: 425273 | J50: 3599 | K50: 225845 | L50: 112561 | M50: 1750071 | N50: 2092076 | O50: 2517349
B51: 成長 | C51: 25.9 | D51: 0.6 | E51: 3.1 | F51: 1283.4 | G51: 0.1 | H51: 383.4 | I51: 1696.5 | J51: 0 | K51: 1203.2 | L51: 574.1 | M51: 6196.4 | N51: 7973.7 | O51: 9670.2
A52: 計 | B52: 面積 | C52: =SUM(C7,C10,C13,C16,C19,C22,C25,C28,C31,C34,C37,C40,C43,C46,C49) -> 98.95 | D52: 6.13 | E52: 6.68 | F52: 1660.98 | G52: 1.84 | H52: 410.48 | I52: 2185.06 | J52: =SUM(J7,J10,J13,J16,J19,J22,J25,J28,J31,J34,J37,J40,J43,J46,J49) -> 86.24 | K52: 2102.4 | L52: 1745.28 | M52: 27818.92 | N52: =SUM(J52:M52) -> 31752.84 | O52: 33937.9
B53: 蓄積 | C53: 38356 | D53: 1043 | E53: 1231 | F53: 373931 | G53: 462 | H53: 85838 | I53: 500861 | J53: 6498 | K53: 245254 | L53: 178934 | M53: 2700562 | N53: =SUM(J53:M53) -> 3131248 | O53: 3632109
B54: 成長 | C54: 64 | D54: 16.4 | E54: 3.1 | F54: 1947.4 | G54: 4.6 | H54: 401.5 | I54: 2437 | J54: 5.1 | K54: 1678.9 | L54: 1715.5 | M54: 23312.3 | N54: =SUM(J54:M54) -> 26711.8 | O54: 29148.8

Sheet 長野
A1: 第5表 地域振興局別・人工林天然林別・資源構成表
A3: 長野地域振興局(天然林) | O3: 単位 面積 : ha、蓄積 成長量 : ㎥
B4: 樹種 | C4: 針 葉 樹 | J4: 広 葉 樹 | O4: 計
C5: ス ギ | D5: ヒ ノ キ | E5: サ ワ ラ | F5: ア カ マ ツ | G5: カ ラ マ ツ | H5: そ の 他 針 | I5: 小 計 | J5: ク ヌ ギ | K5: ブ ナ | L5: ナ ラ | M5: そ の 他 広 | N5: 小 計
A6: 齢級
A7: 1 | B7: 面積 | I7: 0 | N7: 0 | O7: =SUM(N7,I7) -> 0
B8: 蓄積 | I8: 0 | N8: 0 | O8: 0
B9: 成長 | I9: 0 | N9: 0 | O9: 0
A10: 2 | B10: 面積 | F10: 0.08 | I10: 0.08 | J10: 0.71 | L10: 1.85 | M10: 11.68 | N10: 14.24 | O10: 14.32
B11: 蓄積 | F11: 0 | I11: 0 | J11: 9 | L11: 23 | M11: 148 | N11: 180 | O11: 180
B12: 成長 | F12: 0 | I12: 0 | J12: 2.9 | L12: 3.1 | M12: 21 | N12: 27 | O12: 27
A13: 3 | B13: 面積 | F13: 0.03 | I13: 0.03 | L13: 1.79 | M13: 51.96 | N13: 53.75 | O13: 53.78
B14: 蓄積 | F14: 2 | I14: 2 | L14: 38 | M14: 1210 | N14: 1248 | O14: 1250
B15: 成長 | F15: 0.3 | I15: 0.3 | L15: 3.2 | M15: 109.4 | N15: 112.6 | O15: 112.9
A16: 4 | B16: 面積 | D16: 0.14 | I16: 0.14 | J16: 0.63 | L16: 3.47 | M16: 52.34 | N16: 56.44 | O16: 56.58
B17: 蓄積 | D17: 12 | I17: 12 | J17: 36 | L17: 113 | M17: 1626 | N17: 1775 | O17: 1787
B18: 成長 | D18: 1.2 | I18: 1.2 | J18: 1.7 | L18: 7.4 | M18: 110.3 | N18: 119.4 | O18: 120.6
A19: 5 | B19: 面積 | C19: 0.25 | D19: 0.23 | F19: 4.25 | H19: 9.8 | I19: 14.53 | J19: 1.16 | K19: 1.24 | L19: 16.92 | M19: 108.62 | N19: 127.94 | O19: 142.47
B20: 蓄積 | C20: 48 | D20: 13 | F20: 309 | H20: 393 | I20: 763 | J20: 71 | K20: 36 | L20: 702 | M20: 4207 | N20: 5016 | O20: 5779
B21: 成長 | C21: 3.3 | D21: 0.8 | F21: 16.2 | H21: 27.6 | I21: 47.9 | J21: 2.3 | K21: 2.8 | L21: 35.9 | M21: 223.9 | N21: 264.9 | O21: 312.8
A22: 6 | B22: 面積 | D22: 0.57 | F22: 5.75 | I22: 6.32 | J22: 0.5 | L22: 26.72 | M22: 329.75 | N22: 356.97 | O22: 363.29
B23: 蓄積 | D23: 70 | F23: 774 | I23: 844 | J23: 35 | L23: 1410 | M23: 15910 | N23: 17355 | O23: 18199
B24: 成長 | D24: 3.1 | F24: 29 | I24: 32.1 | J24: 0.6 | L24: 57.2 | M24: 642.1 | N24: 699.9 | O24: 732
A25: 7 | B25: 面積 | C25: 0.1 | F25: 2.66 | G25: 0.06 | H25: 0.82 | I25: 3.64 | J25: 15.05 | K25: 6.16 | L25: 75.5 | M25: 703.55 | N25: 800.26 | O25: 803.9
B26: 蓄積 | C26: 27 | F26: 429 | G26: 13 | H26: 52 | I26: 521 | J26: 1160 | K26: 203 | L26: 4625 | M26: 39897 | N26: 45885 | O26: 46406
B27: 成長 | C27: 1 | F27: 10.1 | G27: 0.4 | H27: 2.3 | I27: 13.8 | J27: 17.8 | K27: 11.7 | L27: 143.8 | M27: 1233.2 | N27: 1406.5 | O27: 1420.3
A28: 8 | B28: 面積 | D28: 0.14 | F28: 7.51 | I28: 7.65 | J28: 17.05 | L28: 173.73 | M28: 703.55 | N28: 894.33 | O28: 901.98
B29: 蓄積 | D29: 21 | F29: 1130 | I29: 1151 | J29: 1308 | L29: 12351 | M29: 47193 | N29: 60852 | O29: 62003
B30: 成長 | D30: 0.6 | F30: 23.4 | I30: 24 | J30: 10.9 | L30: 373.1 | M30: 1427.6 | N30: 1811.6 | O30: 1835.6
A31: 9 | B31: 面積 | F31: 8.05 | H31: 3.57 | I31: 11.62 | J31: 15.42 | K31: 10.6 | L31: 110.73 | M31: 632.6 | N31: 769.35 | O31: 780.97
B32: 蓄積 | F32: 1552 | H32: 214 | I32: 1766 | J32: 1341 | K32: 796 | L32: 8931 | M32: 47981 | N32: 59049 | O32: 60815
B33: 成長 | F33: 23.4 | H33: 6.6 | I33: 30 | J33: 6.7 | K33: 27.9 | L33: 249.6 | M33: 1329.1 | N33: 1613.3 | O33: 1643.3
A34: 10 | B34: 面積 | C34: 0.68 | F34: 24.08 | G34: 1.62 | H34: 0.13 | I34: 26.51 | J34: 13.33 | K34: 4.51 | L34: 57.21 | M34: 715.09 | N34: 790.14 | O34: 816.65
B35: 蓄積 | C35: 226 | F35: 4703 | G35: 280 | H35: 13 | I35: 5222 | J35: 1182 | K35: 387 | L35: 5307 | M35: 62019 | N35: 68895 | O35: 74117
B36: 成長 | C36: 4.5 | F36: 61.5 | G36: 5 | H36: 0.4 | I36: 71.4 | J36: 1.9 | K36: 10.8 | L36: 135 | M36: 1576.3 | N36: 1724 | O36: 1795.4
A37: 11 | B37: 面積 | C37: 0.29 | F37: 41.34 | G37: 0.07 | H37: 13.57 | I37: 55.27 | J37: 15.59 | K37: 2.01 | L37: 79.19 | M37: 1275.55 | N37: 1372.34 | O37: 1427.61
B38: 蓄積 | C38: 104 | F38: 8667 | G38: 24 | H38: 1370 | I38: 10165 | J38: 1376 | K38: 195 | L38: 8192 | M38: 121651 | N38: 131414 | O38: 141579
B39: 成長 | C39: 1.6 | F39: 96.5 | G39: 0.4 | H39: 31.5 | I39: 130 | J39: 0 | K39: 4.7 | L39: 163.3 | M39: 2380.9 | N39: 2548.9 | O39: 2678.9
A40: 12 | B40: 面積 | C40: 3.32 | F40: 86.8 | G40: 2.42 | H40: 8.82 | I40: 101.36 | J40: 37.21 | K40: 6.7 | L40: 120.28 | M40: 1872.38 | N40: 2036.57 | O40: 2137.93
B41: 蓄積 | C41: 1684 | F41: 19357 | G41: 693 | H41: 842 | I41: 22576 | J41: 3307 | K41: 484 | L41: 13226 | M41: 193640 | N41: 210657 | O41: 233233
B42: 成長 | C42: 18.5 | F42: 176.8 | G42: 9 | H42: 16.1 | I42: 220.4 | J42: 0 | K42: 11.6 | L42: 247.3 | M42: 3632.1 | N42: 3891 | O42: 4111.4
A43: 13 | B43: 面積 | C43: 0.67 | F43: 207.77 | G43: 0.32 | H43: 0.31 | I43: 209.07 | J43: 136.36 | K43: 7.97 | L43: 335.3 | M43: 3812.62 | N43: 4292.25 | O43: 4501.32
B44: 蓄積 | C44: 324 | F44: 46149 | G44: 89 | H44: 54 | I44: 46616 | J44: 11990 | K44: 877 | L44: 38716 | M44: 421298 | N44: 472881 | O44: 519497
B45: 成長 | C45: 3.7 | F45: 419 | G45: 1.2 | H45: 1 | I45: 424.9 | J45: 0 | K45: 19.3 | L45: 623.9 | M45: 6883.1 | N45: 7526.3 | O45: 7951.2
A46: 14 | B46: 面積 | C46: 0.28 | D46: 0.29 | F46: 404.35 | G46: 0.84 | H46: 1.32 | I46: 407.08 | J46: 321.23 | K46: 2.89 | L46: 628.53 | M46: 6626.82 | N46: 7579.47 | O46: 7986.55
B47: 蓄積 | C47: 133 | D47: 84 | F47: 93995 | G47: 262 | H47: 242 | I47: 94716 | J47: 28122 | K47: 107 | L47: 76022 | M47: 766289 | N47: 870540 | O47: 965256
B48: 成長 | C48: 1.1 | D48: 0.9 | F48: 749.9 | G48: 2.9 | H48: 3.8 | I48: 758.6 | J48: 0 | K48: 2.1 | L48: 827.6 | M48: 8624.6 | N48: 9454.3 | O48: 10212.9
A49: 15 以上 | B49: 面積 | C49: 0.23 | E49: 0.13 | F49: 3253.3 | H49: 555.4 | I49: 3809.06 | J49: 351.88 | K49: 478.71 | L49: 1107.03 | M49: 15365.89 | N49: 17303.51 | O49: 21112.57
B50: 蓄積 | C50: 140 | E50: 35 | F50: 792368 | H50: 113050 | I50: 905593 | J50: 30337 | K50: 67543 | L50: 140405 | M50: 1865463 | N50: 2103748 | O50: 3009341
B51: 成長 | C51: 0.7 | E51: 0.3 | F51: 2853.8 | H51: 363.3 | I51: 3218.1 | J51: 0 | K51: 60.7 | L51: 991 | M51: 10565.6 | N51: 11617.3 | O51: 14835.4
A52: 計 | B52: 面積 | C52: =SUM(C7,C10,C13,C16,C19,C22,C25,C28,C31,C34,C37,C40,C43,C46,C49) -> 5.82 | D52: 1.37 | E52: 0.13 | F52: 4045.97 | G52: 5.33 | H52: 593.74 | I52: 4652.36 | J52: =SUM(J7,J10,J13,J16,J19,J22,J25,J28,J31,J34,J37,J40,J43,J46,J49) -> 926.12 | K52: 520.79 | L52: 2738.25 | M52: 32262.4 | N52: =SUM(J52:M52) -> 36447.56 | O52: 41099.92
B53: 蓄積 | C53: 2686 | D53: 200 | E53: 35 | F53: 969435 | G53: 1361 | H53: 116230 | I53: 1089947 | J53: 80274 | K53: 70628 | L53: 310061 | M53: 3588532 | N53: =SUM(J53:M53) -> 4049495 | O53: 5139442
B54: 成長 | C54: 34.4 | D54: 6.6 | E54: 0.3 | F54: 4459.9 | G54: 18.9 | H54: 452.6 | I54: 4972.7 | J54: 44.8 | K54: 151.6 | L54: 3861.4 | M54: 38759.2 | N54: =SUM(J54:M54) -> 42817 | O54: 47789.7

Sheet 北信
A1: 第5表 地域振興局別・人工林天然林別・資源構成表
A3: 北信地域振興局(天然林) | O3: 単位 面積 : ha、蓄積 成長量 : ㎥
B4: 樹種 | C4: 針 葉 樹 | J4: 広 葉 樹 | O4: 計
C5: ス ギ | D5: ヒ ノ キ | E5: サ ワ ラ | F5: ア カ マ ツ | G5: カ ラ マ ツ | H5: そ の 他 針 | I5: 小 計 | J5: ク ヌ ギ | K5: ブ ナ | L5: ナ ラ | M5: そ の 他 広 | N5: 小 計
A6: 齢級
A7: 1 | B7: 面積 | I7: 0 | M7: 0.12 | N7: 0.12 | O7: =SUM(N7,I7) -> 0.12
B8: 蓄積 | I8: 0 | M8: 0 | N8: 0 | O8: 0
B9: 成長 | I9: 0 | M9: 0 | N9: 0 | O9: 0
A10: 2 | B10: 面積 | C10: 0.4 | G10: 9.75 | I10: 10.15 | M10: 4.08 | N10: 4.08 | O10: 14.23
B11: 蓄積 | C11: 0 | G11: 0 | I11: 0 | M11: 58 | N11: 58 | O11: 58
B12: 成長 | C12: 0 | G12: 0 | I12: 0 | M12: 8 | N12: 8 | O12: 8
A13: 3 | B13: 面積 | F13: 0.09 | I13: 0.09 | L13: 0.08 | M13: 34.12 | N13: 34.2 | O13: 34.29
B14: 蓄積 | F14: 5 | I14: 5 | L14: 2 | M14: 800 | N14: 802 | O14: 807
B15: 成長 | F15: 0.7 | I15: 0.7 | L15: 0.2 | M15: 70.2 | N15: 70.4 | O15: 71.1
A16: 4 | B16: 面積 | I16: 0 | L16: 1.41 | M16: 79.2 | N16: 80.61 | O16: 80.61
B17: 蓄積 | I17: 0 | L17: 45 | M17: 2393 | N17: 2438 | O17: 2438
B18: 成長 | I18: 0 | L18: 3 | M18: 161.1 | N18: 164.1 | O18: 164.1
A19: 5 | B19: 面積 | F19: 0.21 | I19: 0.21 | J19: 0.16 | K19: 2.15 | L19: 3.07 | M19: 81.37 | N19: 86.75 | O19: 86.96
B20: 蓄積 | F20: 24 | I20: 24 | J20: 10 | K20: 33 | L20: 131 | M20: 2989 | N20: 3163 | O20: 3187
B21: 成長 | F21: 1.2 | I21: 1.2 | J21: 0.3 | K21: 2.6 | L21: 6.8 | M21: 158.7 | N21: 168.4 | O21: 169.6
A22: 6 | B22: 面積 | F22: 0.76 | I22: 0.76 | J22: 0.21 | K22: 0.26 | L22: 4.89 | M22: 214.12 | N22: 219.48 | O22: 220.24
B23: 蓄積 | F23: 103 | I23: 103 | J23: 16 | K23: 10 | L23: 262 | M23: 10687 | N23: 10975 | O23: 11078
B24: 成長 | F24: 3.8 | I24: 3.8 | J24: 0.4 | K24: 0.7 | L24: 10.9 | M24: 435.9 | N24: 447.9 | O24: 451.7
A25: 7 | B25: 面積 | C25: 1.46 | F25: 0.5 | I25: 1.96 | J25: 0.46 | K25: 6.99 | L25: 23.52 | M25: 296.5 | N25: 327.47 | O25: 329.43
B26: 蓄積 | C26: 447 | F26: 81 | I26: 528 | J26: 37 | K26: 223 | L26: 1472 | M26: 17396 | N26: 19128 | O26: 19656
B27: 成長 | C27: 16.5 | F27: 1.9 | I27: 18.4 | J27: 0.5 | K27: 12.7 | L27: 46.2 | M27: 539.8 | N27: 599.2 | O27: 617.6
A28: 8 | B28: 面積 | F28: 0.93 | I28: 0.93 | J28: 2.63 | K28: 10.84 | L28: 54.5 | M28: 369.66 | N28: 437.63 | O28: 438.56
B29: 蓄積 | F29: 141 | I29: 141 | J29: 222 | K29: 570 | L29: 3900 | M29: 25569 | N29: 30261 | O29: 30402
B30: 成長 | F30: 2.8 | I30: 2.8 | J30: 2.4 | K30: 24.3 | L30: 117.6 | M30: 771.3 | N30: 915.6 | O30: 918.4
A31: 9 | B31: 面積 | C31: 0.17 | F31: 3.11 | I31: 3.28 | J31: 2.79 | K31: 3.02 | L31: 38.01 | M31: 421.53 | N31: 465.35 | O31: 468.63
B32: 蓄積 | C32: 60 | F32: 626 | I32: 686 | J32: 247 | K32: 210 | L32: 3097 | M32: 32941 | N32: 36495 | O32: 37181
B33: 成長 | C33: 1.3 | F33: 9.3 | I33: 10.6 | J33: 1.3 | K33: 7.3 | L33: 86.9 | M33: 916.4 | N33: 1011.9 | O33: 1022.5
A34: 10 | B34: 面積 | C34: 0.77 | F34: 6.25 | H34: 6.93 | I34: 13.95 | J34: 2.32 | K34: 58.24 | L34: 20.66 | M34: 421.46 | N34: 502.68 | O34: 516.63
B35: 蓄積 | C35: 350 | F35: 1303 | H35: 588 | I35: 2241 | J35: 207 | K35: 3157 | L35: 1908 | M35: 34481 | N35: 39753 | O35: 41994
B36: 成長 | C36: 5.9 | F36: 16.9 | H36: 16.5 | I36: 39.3 | J36: 0.4 | K36: 97.2 | L36: 48.7 | M36: 876 | N36: 1022.3 | O36: 1061.6
A37: 11 | B37: 面積 | C37: 1.09 | F37: 25.37 | H37: 11.06 | I37: 37.52 | J37: 1.48 | K37: 130.4 | L37: 23.45 | M37: 2083.52 | N37: 2238.85 | O37: 2276.37
B38: 蓄積 | C38: 515 | F38: 5046 | H38: 474 | I38: 6035 | J38: 132 | K38: 8911 | L38: 2422 | M38: 139643 | N38: 151108 | O38: 157143
B39: 成長 | C39: 6.2 | F39: 56.7 | H39: 10.9 | I39: 73.8 | J39: 0 | K39: 229.9 | L39: 48.5 | M39: 2595.7 | N39: 2874.1 | O39: 2947.9
A40: 12 | B40: 面積 | F40: 18.71 | G40: 2.04 | H40: 43.12 | I40: 63.87 | J40: 0.71 | K40: 107.53 | L40: 31.46 | M40: 1965.41 | N40: 2105.11 | O40: 2168.98
B41: 蓄積 | F41: 4478 | G41: 599 | H41: 4331 | I41: 9408 | J41: 69 | K41: 10440 | L41: 3396 | M41: 161582 | N41: 175487 | O41: 184895
B42: 成長 | F42: 40 | G42: 7.8 | H42: 82.3 | I42: 130.1 | J42: 0 | K42: 233.6 | L42: 65.2 | M42: 2984.8 | N42: 3283.6 | O42: 3413.7
A43: 13 | B43: 面積 | C43: 0.3 | F43: 37.57 | G43: 0.5 | H43: 152.88 | I43: 191.25 | J43: 5.71 | K43: 425.73 | L43: 66.19 | M43: 3009.14 | N43: 3506.77 | O43: 3698.02
B44: 蓄積 | C44: 155 | F44: 8970 | G44: 152 | H44: 17925 | I44: 27202 | J44: 523 | K44: 35895 | L44: 7811 | M44: 300054 | N44: 344283 | O44: 371485
B45: 成長 | C45: 1.6 | F45: 79.8 | G45: 1.8 | H45: 340.4 | I45: 423.6 | J45: 0 | K45: 801.4 | L45: 123.8 | M45: 4888.9 | N45: 5814.1 | O45: 6237.7
A46: 14 | B46: 面積 | C46: 0.55 | F46: 89.93 | G46: 0.07 | H46: 43.12 | I46: 133.67 | J46: 8.21 | K46: 193.76 | L46: 149.41 | M46: 3572.06 | N46: 3923.44 | O46: 4057.11
B47: 蓄積 | C47: 345 | F47: 22134 | G47: 22 | H47: 4760 | I47: 27261 | J47: 755 | K47: 20583 | L47: 18178 | M47: 394541 | N47: 434057 | O47: 461318
B48: 成長 | C48: 3.1 | F48: 170.8 | G48: 0.2 | H48: 85.7 | I48: 259.8 | J48: 0 | K48: 388 | L48: 201.1 | M48: 4616.6 | N48: 5205.7 | O48: 5465.5
A49: 15 以上 | B49: 面積 | C49: 0.2 | F49: 333.59 | G49: 0.33 | H49: 2108.15 | I49: 2442.27 | J49: 10.78 | K49: 2218.45 | L49: 361.68 | M49: 13395.83 | N49: 15986.74 | O49: 18429.01
B50: 蓄積 | C50: 112 | F50: 88467 | G50: 105 | H50: 398322 | I50: 487006 | J50: 1002 | K50: 295195 | L50: 44201 | M50: 1463435 | N50: 1803833 | O50: 2290839
B51: 成長 | C51: 0.7 | F51: 355.9 | G51: 0 | H51: 563.9 | I51: 920.5 | J51: 0 | K51: 1742.4 | L51: 144.1 | M51: 6246.7 | N51: 8133.2 | O51: 9053.7
A52: 計 | B52: 面積 | C52: =SUM(C7,C10,C13,C16,C19,C22,C25,C28,C31,C34,C37,C40,C43,C46,C49) -> 4.94 | D52: 0 | E52: 0 | F52: 517.02 | G52: 12.69 | H52: 2365.26 | I52: 2899.91 | J52: =SUM(J7,J10,J13,J16,J19,J22,J25,J28,J31,J34,J37,J40,J43,J46,J49) -> 35.46 | K52: 3157.37 | L52: 778.33 | M52: 25948.12 | N52: =SUM(J52:M52) -> 29919.28 | O52: 32819.19
B53: 蓄積 | C53: 1984 | D53: 0 | E53: 0 | F53: 131378 | G53: 878 | H53: 426400 | I53: 560640 | J53: 3220 | K53: 375227 | L53: 86825 | M53: 2586569 | N53: =SUM(J53:M53) -> 3051841 | O53: 3612481
B54: 成長 | C54: 35.3 | D54: 0 | E54: 0 | F54: 739.8 | G54: 9.8 | H54: 1099.7 | I54: 1884.6 | J54: 5.3 | K54: 3540.1 | L54: 903 | M54: 25270.1 | N54: =SUM(J54:M54) -> 29718.5 | O54: 31603.1
